Workbook

Sheet Generale
K1: PIRA 2023-2025
B2: Missione | D2: 011 | E2: Competitività delle imprese | G2: 012 | H2: Regolazione dei mercati | J2: 016 | K2: Commercio internazionale e internazionalizzazione del sistema produttivo | M2: 032 | N2: Servizi istituzionali e generali delle amministrazioni pubbliche | R2: 033 | S2: Fondi da ripartire
B4: Programma | D4: 005 | E4: Regolamentazione, incentivazione dei settori imprenditoriali, riassetti industriali, sperimentazione tecnologica, lotta alla contraffazione, tutela della proprietà industriale | G4: 004 | H4: Vigilanza sui mercati e sui prodotti, promozione della concorrenza e tutela dei consumatori | J4: 005 | K4: Sostegno all'internazionalizzazione delle imprese e promozione del made in Italy | M4: 002 | N4: Indirizzo politico | O4: 003 | P4: Servizi e affari generali per le amministrazioni di competenza | R4: 001 | S4: Fondi da assegnare | T4: 002 | U4: Fondi di riserve speciali
B6: Obiettivi | D6: =IF(E6="","",CONCATENATE(D$2,"-",D$4,"-",$X6)) -> 011-005-001 | E6: Rafforzare la partecipazione delle PMI venete ed istituti di ricerca al processo di innovazione e alla ricerca | G6: =IF(H6="","",CONCATENATE(G$2,"-",G$4,"-",$X6)) -> 012-004-001 | H6: Promuovere la tutela delle imprese sotto l'aspetto della legalità | J6: =IF(K6="","",CONCATENATE(J$2,"-",J$4,"-",$X6)) -> 016-005-001 | K6: Fornire supporto e competenze per sostenere l'esportazione nel Mercato unico e mercati internazionali | M6: =IF(N6="","",CONCATENATE(M$2,"-",M$4,"-",$X6)) -> 032-002-001 | N6: Aumentare la trasparenza e la comunicazione interna ed esterna dell'Ente | O6: =IF(P6="","",CONCATENATE(M$2,"-",O$4,"-",$X6)) -> 032-003-001 | P6: Incrementare il numero di attività a supporto degli obiettivi ed attività comuni/associate del sistema delle Camere venete | R6: =IF(S6="","",CONCATENATE(R$2,"-",R$4,"-",$X6)) ->  | T6: =IF(U6="","",CONCATENATE(R$2,"-",T$4,"-",$X6)) ->  | X6: 001
D7: =IF(E7="","",CONCATENATE(D$2,"-",D$4,"-",$X7)) -> 011-005-002 | E7: Fornire strumenti e supporto per la tutela e valorizzazione della proprietà industriale | G7: =IF(H7="","",CONCATENATE(G$2,"-",G$4,"-",$X7)) -> 012-004-002 | H7: Aumentare la partecipazione delle associazioni di categoria delle imprese in tema di legalità e lotta alla criminalità organizzata | J7: =IF(K7="","",CONCATENATE(J$2,"-",J$4,"-",$X7)) -> 016-005-002 | K7: Attivare meccanismi di ricerca ed individuazione di partner esteri | M7: =IF(N7="","",CONCATENATE(M$2,"-",M$4,"-",$X7)) -> 032-002-002 | N7: Garantire uno sviluppo strategico delle attività e una capacità di risposta ed adattamento alle nuove esigenze degli associati | O7: =IF(P7="","",CONCATENATE(M$2,"-",O$4,"-",$X7)) -> 032-003-002 | P7: Ridurre il costo dei servizi generali (servizi di supporto, segreteria e centrali ) rispetto al totale dei costi, intervenendo sui processi e con investimenti in soluzioni informatiche e upgrading delle competenze (formazione). | R7: =IF(S7="","",CONCATENATE(R$2,"-",R$4,"-",$X7)) ->  | T7: =IF(U7="","",CONCATENATE(R$2,"-",T$4,"-",$X7)) ->  | X7: 002
D8: =IF(E8="","",CONCATENATE(D$2,"-",D$4,"-",$X8)) -> 011-005-003 | E8: Promuovere la competitività del sistema economico veneto tramite la partecipazione a progetti europei nei settori prioritari del periodo di programmazione 2021 2027 | O8: 032-003-003 | P8: Migliorare l'efficenza complessiva e la capacità di erogare servizi che rispondono ad una domanda effettiva nel mercato regionale, europeo e nazionale | X8: 003
D9: =IF(E9="","",CONCATENATE(D$2,"-",D$4,"-",$X9)) -> 011-005-004 | E9: Monitorare e diffondere dati strutturati sull' economia regionale | X9: 004
X10: 005
X11: 006
X12: 007
X13: 008
B17: Arco temporale | D17: Inferiore all'anno
D18: Anno
D19: Biennio
D20: Triennio
D21: Superiore al triennio
B23: Tipologia | D23: di realizzazione fisica
D24: di risultato (otuput)
D25: di impatto (outcome)
D26: di realizzazione finanziaria
D27: altre tipologie (specificare sotto)
B29: Unità di misura | D29: Valore assoluto
D30: Percentuale
D31: Data
D32: Euro
D33: Altro (specificare sotto)
B35: Fonte | D35: Movimprese
D36: Priamo
D37: XAC/Oracle applications
D38: Eureka
D39: Starnet
D40: Infocert
D41: OFA
D42: Stockview
D43: Prodigi
D44: Simba
D45: Altro (specificare sotto)

Sheet 005_Regolamentazione
B1: Missione | C1: 011 - Competitività delle imprese | L1: Missione | M1: 011 - Competitività delle imprese
B3: Programma | C3: 005 - Regolamentazione, incentivazione dei settori imprenditoriali, riassetti industriali, sperimentazione tecnologica, lotta alla contraffazione, tutela della proprietà industriale | L3: Programma | M3: 005 - Regolamentazione, incentivazione dei settori imprenditoriali, riassetti industriali, sperimentazione tecnologica, lotta alla contraffazione, tutela della proprietà industriale
B6: Obiettivo | C6: Titolo | D6: =+Generale!E6 -> Rafforzare la partecipazione delle PMI venete ed istituti di ricerca al processo di innovazione e alla ricerca | L6: Obiettivo | M6: Titolo | N6: =+Generale!E10 -> 0
C7: Descrizione | D7: Azioni svolte a promuovere la partecipazione a programmi europei e regionali per l'innovazione e la ricerca | M7: Descrizione
C8: Arco temporale realizzazione | D8: Triennio | M8: Arco temporale realizzazione
C9: Centro di responsabilità | D9: Area impresa e territorio | M9: Centro di responsabilità
C10: Risorse economiche | D10: Triennio 2023-2025: 300.000 | M10: Risorse finanziarie
B11: =+Generale!D6 -> 011-005-001 | L11: =+Generale!D10 -> 
C12: Nr indicatori associati | D12: 4 | E12: <<< nb: indicare preventivamente il Nr indicatori associati all'obiettivo | M12: Nr indicatori associati | O12: <<< nb: indicare preventivamente il Nr indicatori associati all'obiettivo
B15: Indicatore | C15: Numero di imprese coinvolte in iniziative di innovazione e ricerca | L15: Indicatore | M15: (titolo)
B16: Cosa misura | C16: Misura la variazione del numero di imprese a che si rivolgono ad Unioncamere del Veneto per convegni e seminari informativi, corsi di formazione, corsi di progettazione ed assistenza specialistica | L16: Cosa misura
B17: Tipologia | C17: Unità di misura | D17: Algoritmo di calcolo | E17: Fonte dei dati | F17: Ultimo valore osservato - cons. 2021 | G17: Risultato atteso anno 2023 | H17: Risultato atteso anno 2024 | I17: Risultato atteso anno 2025 | L17: Tipologia | M17: Unità di misura | N17: Algoritmo di calcolo | O17: Fonte dei dati | P17: Ultimo valore osservato | Q17: Risultato atteso anno n | R17: Risultato atteso anno n+1 | S17: Risultato atteso anno n+2
B18: altre tipologie (specificare sotto) | C18: Percentuale | D18: Nr soggetti che hanno partecipato ad iniziative dell'Ente nell'anno n / N° aziende che hanno partecipato ad iniziative dell'Ente anno n-1 e nell'anno n | F18: =532/(716+532) -> 0.4262820513 | G18: 0.45 | H18: 0.45 | I18: 0.45
B19: Qualità | C19: Se altro, indicare qui | E19: Relazione attività Unioncamere del Veneto e programmazione attività | L19: Se altro, indicare qui | M19: Se altro, indicare qui | O19: Se altro, indicare qui
B21: Indicatore | C21: Grado di partecipazione di imprese a programmi europei e regionali per la ricerca ed innovazione | L21: Indicatore
B22: Cosa misura | C22: Capacità dell'Ente nel promuovere la partecipazione di imprese a programmi per la ricerca ed innovazione | L22: Cosa misura
B23: Tipologia | C23: Unità di misura | D23: Algoritmo di calcolo | E23: Fonte dei dati | F23: Ultimo valore osservato - cons. 2021 | G23: Risultato atteso anno 2023 | H23: Risultato atteso anno 2024 | I23: Risultato atteso anno 2025 | L23: Tipologia | M23: Unità di misura | N23: Algoritmo di calcolo | O23: Fonte dei dati | P23: Ultimo valore osservato | Q23: Risultato atteso anno n | R23: Risultato atteso anno n+1 | S23: Risultato atteso anno n+2
C24: Percentuale | D24: Nr soggetti che hanno partecipato ad iniziative dell'Ente nell'anno n / N° aziende che hanno partecipato ad iniziative dell'Ente anno n-1 e nell'anno n | F24: =246/(246+305) -> 0.44646098 | G24: =F24 -> 0.44646098 | H24: =G24 -> 0.44646098 | I24: 0.44646098
B25: Qualità | C25: Se altro, indicare qui | E25: RETE EEN | L25: Se altro, indicare qui | M25: Se altro, indicare qui | O25: Se altro, indicare qui
B27: Indicatore | C27: Numero di aziende iscritte alla sezione start up innovative | L27: Indicatore | M27: (titolo)
B28: Cosa misura | C28: Grado di nascita di imprese innovative sul territorio regionale | L28: Cosa misura
B29: Tipologia | C29: Unità di misura | D29: Algoritmo di calcolo | E29: Fonte dei dati | F29: Ultimo valore osservato - cons. 2021 | G29: Risultato atteso anno 2023 | H29: Risultato atteso anno 2024 | I29: Risultato atteso anno 2025 | L29: Tipologia | M29: Unità di misura | N29: Algoritmo di calcolo | O29: Fonte dei dati | P29: Ultimo valore osservato | Q29: Risultato atteso anno n | R29: Risultato atteso anno n+1 | S29: Risultato atteso anno n+2
B30: di risultato (otuput) | C30: Percentuale | D30: numero di start up innovative iscritte in veneto/numero di start up innovative iscritte in italia | E30: Altro (specificare sotto) | F30: =1082/11899 -> 0.09093201109 | G30: 0.1 | H30: 0.1 | I30: 0.1
B31: Se altro, indicare qui | C31: Se altro, indicare qui | E31: Infocamere | L31: Se altro, indicare qui | M31: Se altro, indicare qui | O31: Se altro, indicare qui
B33: Indicatore | C33: Incidenza personale dedicato alle attività di innovazione e ricerca | L33: Indicatore | M33: (titolo)
B34: Cosa misura | C34: Misura l'impegno dell'Unione regionale nell'offrire servizi relativi alle attività di innovazione e ricerca | L34: Cosa misura
B35: Tipologia | C35: Unità di misura | D35: Algoritmo di calcolo | E35: Fonte dei dati | F35: Ultimo valore osservato - cons. 2021 | G35: Risultato atteso anno 2023 | H35: Risultato atteso anno 2024 | I35: Risultato atteso anno 2025 | L35: Tipologia | M35: Unità di misura | N35: Algoritmo di calcolo | O35: Fonte dei dati | P35: Ultimo valore osservato | Q35: Risultato atteso anno n | R35: Risultato atteso anno n+1 | S35: Risultato atteso anno n+2
B36: altre tipologie (specificare sotto) | C36: Percentuale | D36: Personale (espresso in FTE) impiegato nell'anno "n"/Personale (espresso in FTE) impiegato nell'anno "n" | E36: Altro (specificare sotto) | F36: =3/28 -> 0.1071428571 | G36: 0.107 | H36: =G36 -> 0.107 | I36: 0.1
B37: Qualità | C37: Se altro, indicare qui | E37: rilevazione interna UR | L37: Se altro, indicare qui | M37: Se altro, indicare qui | O37: Se altro, indicare qui
B39: Indicatore | C39: (titolo) | L39: Indicatore | M39: (titolo)
B40: Cosa misura | L40: Cosa misura
B41: Tipologia | C41: Unità di misura | D41: Algoritmo di calcolo | E41: Fonte dei dati | F41: Ultimo valore osservato | G41: Risultato atteso anno n | H41: Risultato atteso anno n+1 | I41: Risultato atteso anno n+2 | L41: Tipologia | M41: Unità di misura | N41: Algoritmo di calcolo | O41: Fonte dei dati | P41: Ultimo valore osservato | Q41: Risultato atteso anno n | R41: Risultato atteso anno n+1 | S41: Risultato atteso anno n+2
B43: Se altro, indicare qui | C43: Se altro, indicare qui | E43: Se altro, indicare qui | L43: Se altro, indicare qui | M43: Se altro, indicare qui | O43: Se altro, indicare qui
B45: Obiettivo | C45: Titolo | D45: =+IF(Generale!E7="","",Generale!E7) -> Fornire strumenti e supporto per la tutela e valorizzazione della proprietà industriale | L45: Obiettivo | M45: Titolo | N45: =+Generale!E11 -> 0
C46: Descrizione | D46: Complesso di attività svolte dall'Ente a livello regionale ed europeo a tutela e valorizzazione degli asset aziendali | M46: Descrizione
C47: Arco temporale per la realizzazione | D47: Triennio | M47: Arco temporale per la realizzazione
C48: Centro di responsabilità | D48: Area Impresa e Territorio | M48: Centro di responsabilità
C49: Risorse finanziarie | D49: Triennio: 5.000 | M49: Risorse finanziarie
B50: =+Generale!D7 -> 011-005-002 | L50: =+Generale!D11 -> 
C51: Nr indicatori associati | D51: 1 | E51: <<< nb: indicare preventivamente il Nr indicatori associati all'obiettivo | M51: Nr indicatori associati | O51: <<< nb: indicare preventivamente il Nr indicatori associati all'obiettivo
B54: Indicatore | C54: Azioni volte alla valorizzazione e tutela della proprietà industriale | L54: Indicatore | M54: (titolo)
B55: Cosa misura | C55: Il numero di attività promosse nel territorio, in cooperazione con il sistema camerale, i Ministeri nazionali e la Commissione Europea | L55: Cosa misura
B56: Tipologia | C56: Unità di misura | D56: Algoritmo di calcolo | E56: Fonte dei dati | F56: Ultimo valore osservato - cons. 2021 | G56: Risultato atteso anno 2023 | H56: Risultato atteso anno 2024 | I56: Risultato atteso anno 2025 | L56: Tipologia | M56: Unità di misura | N56: Algoritmo di calcolo | O56: Fonte dei dati | P56: Ultimo valore osservato | Q56: Risultato atteso anno n | R56: Risultato atteso anno n+1 | S56: Risultato atteso anno n+2
B57: di risultato (otuput) | C57: Valore assoluto | D57: N° incontri formativi, servizi televisivi o radiofonici, pieghevoli pubblicitari, guide pratiche pubblicate | E57: Altro (specificare sotto) | F57: 0 | G57: 1 | H57: 1 | I57: 1
B58: Se altro, indicare qui | C58: Se altro, indicare qui | E58: rilevazione interna UR | L58: Se altro, indicare qui | M58: Se altro, indicare qui | O58: Se altro, indicare qui
B60: Indicatore | C60: (titolo) | L60: Indicatore | M60: (titolo)
B61: Cosa misura | L61: Cosa misura
B62: Tipologia | C62: Unità di misura | D62: Algoritmo di calcolo | E62: Fonte dei dati | F62: Ultimo valore osservato | G62: Risultato atteso anno n | H62: Risultato atteso anno n+1 | I62: Risultato atteso anno n+2 | L62: Tipologia | M62: Unità di misura | N62: Algoritmo di calcolo | O62: Fonte dei dati | P62: Ultimo valore osservato | Q62: Risultato atteso anno n | R62: Risultato atteso anno n+1 | S62: Risultato atteso anno n+2
B64: Se altro, indicare qui | C64: Se altro, indicare qui | E64: Se altro, indicare qui | L64: Se altro, indicare qui | M64: Se altro, indicare qui | O64: Se altro, indicare qui
B66: Indicatore | C66: (titolo) | L66: Indicatore | M66: (titolo)
B67: Cosa misura | L67: Cosa misura
B68: Tipologia | C68: Unità di misura | D68: Algoritmo di calcolo | E68: Fonte dei dati | F68: Ultimo valore osservato | G68: Risultato atteso anno n | H68: Risultato atteso anno n+1 | I68: Risultato atteso anno n+2 | L68: Tipologia | M68: Unità di misura | N68: Algoritmo di calcolo | O68: Fonte dei dati | P68: Ultimo valore osservato | Q68: Risultato atteso anno n | R68: Risultato atteso anno n+1 | S68: Risultato atteso anno n+2
B70: Se altro, indicare qui | C70: Se altro, indicare qui | E70: Se altro, indicare qui | L70: Se altro, indicare qui | M70: Se altro, indicare qui | O70: Se altro, indicare qui
B72: Indicatore | C72: (titolo) | L72: Indicatore
B73: Cosa misura | L73: Cosa misura
B74: Tipologia | C74: Unità di misura | D74: Algoritmo di calcolo | E74: Fonte dei dati | F74: Ultimo valore osservato | G74: Risultato atteso anno n | H74: Risultato atteso anno n+1 | I74: Risultato atteso anno n+2 | L74: Tipologia | M74: Unità di misura | N74: Algoritmo di calcolo | O74: Fonte dei dati | P74: Ultimo valore osservato | Q74: Risultato atteso anno n | R74: Risultato atteso anno n+1 | S74: Risultato atteso anno n+2
B76: Se altro, indicare qui | C76: Se altro, indicare qui | E76: Se altro, indicare qui | L76: Se altro, indicare qui | M76: Se altro, indicare qui | O76: Se altro, indicare qui
B78: Indicatore | C78: (titolo) | L78: Indicatore
B79: Cosa misura | L79: Cosa misura
B80: Tipologia | C80: Unità di misura | D80: Algoritmo di calcolo | E80: Fonte dei dati | F80: Ultimo valore osservato | G80: Risultato atteso anno n | H80: Risultato atteso anno n+1 | I80: Risultato atteso anno n+2 | L80: Tipologia | M80: Unità di misura | N80: Algoritmo di calcolo | O80: Fonte dei dati | P80: Ultimo valore osservato | Q80: Risultato atteso anno n | R80: Risultato atteso anno n+1 | S80: Risultato atteso anno n+2
B82: Se altro, indicare qui | C82: Se altro, indicare qui | E82: Se altro, indicare qui | L82: Se altro, indicare qui | M82: Se altro, indicare qui | O82: Se altro, indicare qui
B84: Missione | C84: 011 - Competitività delle imprese | L84: Missione | M84: 011 - Competitività delle imprese
B86: Programma | C86: 005 - Regolamentazione, incentivazione dei settori imprenditoriali, riassetti industriali, sperimentazione tecnologica, lotta alla contraffazione, tutela della proprietà industriale | L86: Programma | M86: 005 - Regolamentazione, incentivazione dei settori imprenditoriali, riassetti industriali, sperimentazione tecnologica, lotta alla contraffazione, tutela della proprietà industriale
B89: Obiettivo | C89: Titolo | D89: =+Generale!E8 -> Promuovere la competitività del sistema economico veneto tramite la partecipazione a progetti europei nei settori prioritari del periodo di programmazione 2021 2027 | L89: Obiettivo | M89: Titolo | N89: =+Generale!E12 -> 0
C90: Descrizione | D90: Mobilitazione del comparto produttivo e dei servizi in materia di energia, trasporti e agrobusiness "verde", tramite progetti europei , regionali e nazionali | M90: Descrizione
C91: Arco temporale realizzazione | D91: Triennio | M91: Arco temporale realizzazione
C92: Centro di responsabilità | D92: Area Impresa e Territorio - Supporto progettuale alle CCIAA | M92: Centro di responsabilità
C93: Risorse finanziarie | D93: Triennio: 1.500.000 | M93: Risorse finanziarie
B94: =+Generale!D8 -> 011-005-003 | L94: =+Generale!D12 -> 
C95: Nr indicatori associati | D95: 3 | E95: <<< nb: indicare preventivamente il Nr indicatori associati all'obiettivo | M95: Nr indicatori associati | O95: <<< nb: indicare preventivamente il Nr indicatori associati all'obiettivo
B98: Indicatore | C98: Grado di partecipazione di imprese ad iniziative nei settori prioritari per la competitività come definiti dall'UE nella programmazione 2014-2020 | L98: Indicatore | M98: (titolo)
B99: Cosa misura | C99: Misura il numero di imprese che si sono rivolte ad Unioncamere del veneto per convegni e seminari informativi, corsi di formazione, corsi di progettazione su temi europei per la competitività | L99: Cosa misura
B100: Tipologia | C100: Unità di misura | D100: Algoritmo di calcolo | E100: Fonte dei dati | F100: Ultimo valore osservato - cons. 2021 | G100: Risultato atteso anno 2023 | H100: Risultato atteso anno 2024 | I100: Risultato atteso anno 2025 | L100: Tipologia | M100: Unità di misura | N100: Algoritmo di calcolo | O100: Fonte dei dati | P100: Ultimo valore osservato | Q100: Risultato atteso anno n | R100: Risultato atteso anno n+1 | S100: Risultato atteso anno n+2
C101: Valore assoluto | D101: Nr di soggetti partecipanti anno | F101: 275 | G101: 350 | H101: 350 | I101: 350
B102: Se altro, indicare qui | C102: Se altro, indicare qui | E102: Relazione attività | L102: Se altro, indicare qui | M102: Se altro, indicare qui | O102: Se altro, indicare qui
B104: Indicatore | C104: Grado di successo nella presentazione di progetti europei | L104: Indicatore | M104: (titolo)
B105: Cosa misura | C105: La capacità dell'Ente di agiudicarsi fondi europei a gestione centralizzata | L105: Cosa misura
B106: Tipologia | C106: Unità di misura | D106: Algoritmo di calcolo | E106: Fonte dei dati | F106: Ultimo valore osservato - cons. 2021 | G106: Risultato atteso anno 2023 | H106: Risultato atteso anno 2024 | I106: Risultato atteso anno 2025 | L106: Tipologia | M106: Unità di misura | N106: Algoritmo di calcolo | O106: Fonte dei dati | P106: Ultimo valore osservato | Q106: Risultato atteso anno n | R106: Risultato atteso anno n+1 | S106: Risultato atteso anno n+2
C107: Percentuale | D107: Progetti presentati/Progetti aggiudicati | F107: 0.3 | G107: 0.3 | H107: 3.2 | I107: 0.3
B108: Qualità | C108: Se altro, indicare qui | E108: Commissione europea | L108: Se altro, indicare qui | M108: Se altro, indicare qui | O108: Se altro, indicare qui
B110: Indicatore | C110: Coinvolgimento e promozione di attività volte a favorire l'accesso al credito delle PMI | L110: Indicatore | M110: (titolo)
B111: Cosa misura | C111: Il coinvolgimento dell'Ente nelle attività di promozione e sviluppo di azioni che facilitino l'accesso al credito delle PMI venete | L111: Cosa misura
B112: Tipologia | C112: Unità di misura | D112: Algoritmo di calcolo | E112: Fonte dei dati | F112: Ultimo valore osservato - cons. 2021 | G112: Risultato atteso anno 2023 | H112: Risultato atteso anno 2024 | I112: Risultato atteso anno 2025 | L112: Tipologia | M112: Unità di misura | N112: Algoritmo di calcolo | O112: Fonte dei dati | P112: Ultimo valore osservato | Q112: Risultato atteso anno n | R112: Risultato atteso anno n+1 | S112: Risultato atteso anno n+2
C113: Valore assoluto | D113: Nr di nuove iniziative per il credito promosse a livello regionale | E113: Altro (specificare sotto) | F113: 4 | G113: 4 | H113: 4 | I113: 4
B114: Qualità | C114: Se altro, indicare qui | E114: Relazione Attività Unioncamere del Veneto e programmazione attività | L114: Se altro, indicare qui | M114: Se altro, indicare qui | O114: Se altro, indicare qui
B116: Indicatore | L116: Indicatore | M116: (titolo)
B117: Cosa misura | L117: Cosa misura
B118: Tipologia | C118: Unità di misura | D118: Algoritmo di calcolo | E118: Fonte dei dati | F118: Ultimo valore osservato | G118: Risultato atteso anno n | H118: Risultato atteso anno n+1 | I118: Risultato atteso anno n+2 | L118: Tipologia | M118: Unità di misura | N118: Algoritmo di calcolo | O118: Fonte dei dati | P118: Ultimo valore osservato | Q118: Risultato atteso anno n | R118: Risultato atteso anno n+1 | S118: Risultato atteso anno n+2
E119: Altro (specificare sotto) | F119: n.d | G119: 0.25 | H119: 0.5 | I119: 0.6
B120: Se altro, indicare qui | C120: Se altro, indicare qui | L120: Se altro, indicare qui | M120: Se altro, indicare qui | O120: Se altro, indicare qui
B122: Indicatore | C122: (titolo) | L122: Indicatore | M122: (titolo)
B123: Cosa misura
B124: Tipologia | C124: Unità di misura | D124: Algoritmo di calcolo | E124: Fonte dei dati | F124: Ultimo valore osservato | G124: Risultato atteso anno n | H124: Risultato atteso anno n+1 | I124: Risultato atteso anno n+2 | L124: Tipologia | M124: Unità di misura | N124: Algoritmo di calcolo | O124: Fonte dei dati | P124: Ultimo valore osservato | Q124: Risultato atteso anno n | R124: Risultato atteso anno n+1 | S124: Risultato atteso anno n+2
B126: Se altro, indicare qui | C126: Se altro, indicare qui | E126: Se altro, indicare qui | L126: Se altro, indicare qui | M126: Se altro, indicare qui | O126: Se altro, indicare qui
B128: Obiettivo | C128: Titolo | D128: =+Generale!E9 -> Monitorare e diffondere dati strutturati sull' economia regionale | L128: Obiettivo | M128: Titolo | N128: =+Generale!E13 -> 0
C129: Descrizione | D129: Attività di raccolta ed elaborazione dati e studi sull'economia regionale e suoi trend | M129: Descrizione
C130: Arco temporale realizzazione | D130: Triennio | M130: Arco temporale realizzazione
C131: Centro di responsabilità | D131: Area Impresa e Territorio | M131: Centro di responsabilità
C132: Risorse finanziarie | D132: Triennio: 210.000 | M132: Risorse finanziarie
B133: =+Generale!D9 -> 011-005-004 | L133: =+Generale!D13 -> 
C134: Nr indicatori associati | D134: 4 | E134: <<< nb: indicare preventivamente il Nr indicatori associati all'obiettivo | M134: Nr indicatori associati | N134: 1 | O134: <<< nb: indicare preventivamente il Nr indicatori associati all'obiettivo
B137: Indicatore | C137: Livello di copertura dei settori economici mediante indagini statistiche | L137: Indicatore | M137: (titolo)
B138: Cosa misura | C138: Misura la copertura dei settori economici mediante indagini statistiche effettuate dall'Ente | L138: Cosa misura
B139: Tipologia | C139: Unità di misura | D139: Algoritmo di calcolo | E139: Fonte dei dati | F139: Ultimo valore osservato - cons. 2021 | G139: Risultato atteso anno 2023 | H139: Risultato atteso anno 2024 | I139: Risultato atteso anno 2025 | L139: Tipologia | M139: Unità di misura | N139: Algoritmo di calcolo | O139: Fonte dei dati | P139: Ultimo valore osservato | Q139: Risultato atteso anno n | R139: Risultato atteso anno n+1 | S139: Risultato atteso anno n+2
B140: di risultato (otuput) | C140: Percentuale | D140: Numero di settori per cui è stata realizzata almeno un'indagine statistica nell'anno "n"/Totale settori economici interessati (ad es. Agricoltura; Artigianato; Commercio; Industria; Altri settori) | E140: Altro (specificare sotto) | F140: =7/10 -> 0.7 | G140: 0.7 | H140: 0.7 | I140: 0.7
B141: Se altro, indicare qui | C141: Se altro, indicare qui | E141: rilevazione interna UR | L141: Se altro, indicare qui | M141: Se altro, indicare qui | O141: Se altro, indicare qui
B143: Indicatore | C143: Grado di diffusione delle indagini statistiche | L143: Indicatore | M143: (titolo)
B144: Cosa misura | C144: Misura il gRado di "utilizzo" da parte delle CCIAA delle indagini statistiche effettuate dalle Unioni regionali | L144: Cosa misura
B145: Tipologia | C145: Unità di misura | D145: Algoritmo di calcolo | E145: Fonte dei dati | F145: Ultimo valore osservato - cons. 2021 | G145: Risultato atteso anno 2023 | H145: Risultato atteso anno 2024 | I145: Risultato atteso anno 2025 | L145: Tipologia | M145: Unità di misura | N145: Algoritmo di calcolo | O145: Fonte dei dati | P145: Ultimo valore osservato | Q145: Risultato atteso anno n | R145: Risultato atteso anno n+1 | S145: Risultato atteso anno n+2
C146: Valore assoluto | D146: Iniziative (convegni, seminari, pubblicazioni, ecc.) realizzate dall'Ente che si basano su indagini curate dall'Ente stesso | E146: Altro (specificare sotto) | F146: 38 | G146: 40 | H146: 40 | I146: 40
B147: Efficacia | C147: Se altro, indicare qui | E147: rilevazione interna UR | L147: Se altro, indicare qui | M147: Se altro, indicare qui | O147: Se altro, indicare qui
B149: Indicatore | C149: Volume medio di attività gestito dal personale addetto all'ufficio studi | L149: Indicatore | M149: (titolo)
B150: Cosa misura | C150: Misura dell’efficienza con cui l'Unione regionale gestisce il servizio di pubblicazioni statistica e di analisi dell'economia regionale | L150: Cosa misura
B151: Tipologia | C151: Unità di misura | D151: Algoritmo di calcolo | E151: Fonte dei dati | F151: Ultimo valore osservato - cons. 2021 | G151: Risultato atteso anno 2023 | H151: Risultato atteso anno 2024 | I151: Risultato atteso anno 2025 | L151: Tipologia | M151: Unità di misura | N151: Algoritmo di calcolo | O151: Fonte dei dati | P151: Ultimo valore osservato | Q151: Risultato atteso anno n | R151: Risultato atteso anno n+1 | S151: Risultato atteso anno n+2
B152: di realizzazione fisica | C152: Valore assoluto | D152: N° pubblicazioni, studi e ricerche realizzate nell'anno "n"/Personale (espresso in FTE) impiegato nell'uffico studi nell'anno "n" | E152: Altro (specificare sotto) | F152: =38/2 -> 19 | G152: 19 | H152: 19 | I152: 19
B153: Se altro, indicare qui | C153: Se altro, indicare qui | E153: rilevazione interna UR | L153: Se altro, indicare qui | M153: Se altro, indicare qui | O153: Se altro, indicare qui
B155: Indicatore | C155: Incidenza personale dedicato alle attvità dell'ufficio studi | L155: Indicatore | M155: (titolo)
B156: Cosa misura | C156: Misura l'impegno dell'Unione regionale nell'offrire servizi relativi all'attività dell'ufficio studi | L156: Cosa misura
B157: Tipologia | C157: Unità di misura | D157: Algoritmo di calcolo | E157: Fonte dei dati | F157: Ultimo valore osservato - cons. 2021 | G157: Risultato atteso anno 2023 | H157: Risultato atteso anno 2024 | I157: Risultato atteso anno 2025 | L157: Tipologia | M157: Unità di misura | N157: Algoritmo di calcolo | O157: Fonte dei dati | P157: Ultimo valore osservato | Q157: Risultato atteso anno n | R157: Risultato atteso anno n+1 | S157: Risultato atteso anno n+2
B158: altre tipologie (specificare sotto) | C158: Percentuale | D158: Personale (espresso in FTE) impiegato nell'uffico studi nell'anno "n"/Personale (espresso in FTE) impiegato nell'anno "n" | E158: Altro (specificare sotto) | F158: =2.5/27 -> 0.09259259259 | G158: 0.09 | H158: 0.09 | I158: 0.09
B159: Qualità | C159: Se altro, indicare qui | E159: rilevazione interna UR | L159: Se altro, indicare qui | M159: Se altro, indicare qui | O159: Se altro, indicare qui
B161: Indicatore | C161: (titolo) | L161: Indicatore | M161: (titolo)
B162: Cosa misura | L162: Cosa misura
B163: Tipologia | C163: Unità di misura | D163: Algoritmo di calcolo | E163: Fonte dei dati | F163: Ultimo valore osservato | G163: Risultato atteso anno n | H163: Risultato atteso anno n+1 | I163: Risultato atteso anno n+2 | L163: Tipologia | M163: Unità di misura | N163: Algoritmo di calcolo | O163: Fonte dei dati | P163: Ultimo valore osservato | Q163: Risultato atteso anno n | R163: Risultato atteso anno n+1 | S163: Risultato atteso anno n+2
B165: Se altro, indicare qui | C165: Se altro, indicare qui | E165: Se altro, indicare qui | L165: Se altro, indicare qui | M165: Se altro, indicare qui | O165: Se altro, indicare qui

Sheet 004_Vigilanza_mercati
B1: Missione | C1: 012 - Regolazione dei mercati | L1: Missione | M1: 012 - Regolazione dei mercati
B3: Programma | C3: 004 - Vigilanza sui mercati e sui prodotti, promozione della concorrenza e tutela dei consumatori | L3: Programma | M3: 004 - Vigilanza sui mercati e sui prodotti, promozione della concorrenza e tutela dei consumatori
B6: Obiettivo | C6: Titolo | D6: =+Generale!H6 -> Promuovere la tutela delle imprese sotto l'aspetto della legalità | L6: Obiettivo | M6: Titolo | N6: =+Generale!H10 -> 0
C7: Descrizione | D7: Azioni volte alla tutela delle imprese in tema di legalità e lotta alla criminalità | M7: Descrizione
C8: Arco temporale realizzazione | D8: Triennio | M8: Arco temporale realizzazione
C9: Centro di responsabilità | D9: Area Amministrazione interna e Servizi alle CCIAA | M9: Centro di responsabilità
C10: Risorse economiche | D10: Triennio: 30.000 | M10: Risorse finanziarie
B11: =+Generale!G6 -> 012-004-001 | L11: =+Generale!G10 -> 
C12: Nr indicatori associati | D12: 3 | E12: <<< nb: indicare preventivamente il Nr indicatori associati all'obiettivo | M12: Nr indicatori associati | O12: <<< nb: indicare preventivamente il Nr indicatori associati all'obiettivo
B15: Indicatore | C15: Grado di copertura delle iniziative camerali di regolazione del mercato e vigilanza | L15: Indicatore | M15: (titolo)
B16: Cosa misura | C16: Misura il grado di copertura delle iniziative camerali in materia di regolazione del mercato e vigilanza attraverso le Unioni regionali | L16: Cosa misura
B17: Tipologia | C17: Unità di misura | D17: Algoritmo di calcolo | E17: Fonte dei dati | F17: Ultimo valore osservato - cons. 2021 | G17: Risultato atteso anno 2023 | H17: Risultato atteso anno 2024 | I17: Risultato atteso anno 2025 | L17: Tipologia | M17: Unità di misura | N17: Algoritmo di calcolo | O17: Fonte dei dati | P17: Ultimo valore osservato | Q17: Risultato atteso anno n | R17: Risultato atteso anno n+1 | S17: Risultato atteso anno n+2
B18: di realizzazione fisica | C18: valore assoluto | D18: Numero di inizative volte alla tutela delle imprese dalle infiltrazioni della criminalità organizzata | E18: Altro (specificare sotto) | F18: 1 | G18: 1 | H18: 1 | I18: 1
B19: Se altro, indicare qui | C19: Se altro, indicare qui | E19: rilevazione interna UR | L19: Se altro, indicare qui | M19: Se altro, indicare qui | O19: Se altro, indicare qui
B21: Indicatore | C21: Incidenza personale dedicato alle attività di regolazione del mercato e vigilanza | L21: Indicatore
B22: Cosa misura | C22: Misura l'impegno dell'Unione regionale nell'offrire servizi di regolazione del mercato e vigilanza | L22: Cosa misura
B23: Tipologia | C23: Unità di misura | D23: Algoritmo di calcolo | E23: Fonte dei dati | F23: Ultimo valore osservato - cons. 2021 | G23: Risultato atteso anno 2023 | H23: Risultato atteso anno 2024 | I23: Risultato atteso anno 2025 | L23: Tipologia | M23: Unità di misura | N23: Algoritmo di calcolo | O23: Fonte dei dati | P23: Ultimo valore osservato | Q23: Risultato atteso anno n | R23: Risultato atteso anno n+1 | S23: Risultato atteso anno n+2
B24: altre tipologie (specificare sotto) | C24: Percentuale | D24: Personale (espresso in FTE) impiegato in attività di regolazione del mercato e vigilanza nell'anno "n"/Personale (espresso in FTE) impiegato nell'anno "n" | E24: Altro (specificare sotto) | F24: =1/28 -> 0.03571428571 | G24: =F24 -> 0.03571428571 | H24: =G24 -> 0.03571428571 | I24: =H24 -> 0.03571428571
B25: Qualità | C25: Se altro, indicare qui | E25: rilevazione interna UR | L25: Se altro, indicare qui | M25: Se altro, indicare qui | O25: Se altro, indicare qui
B27: Indicatore | C27: Livello di informazione e formazione sui temi della tutela delle imprese | L27: Indicatore | M27: (titolo)
B28: Cosa misura | C28: Misura il livello di informazione ed assistenza erogata dall'ente sui temi della legalità e delle infiltrazioni criminali | L28: Cosa misura
B29: Tipologia | C29: Unità di misura | D29: Algoritmo di calcolo | E29: Fonte dei dati | F29: Ultimo valore osservato - cons. 2021 | G29: Risultato atteso anno 2023 | H29: Risultato atteso anno 2024 | I29: Risultato atteso anno 2025 | L29: Tipologia | M29: Unità di misura | N29: Algoritmo di calcolo | O29: Fonte dei dati | P29: Ultimo valore osservato | Q29: Risultato atteso anno n | R29: Risultato atteso anno n+1 | S29: Risultato atteso anno n+2
B30: di realizzazione fisica | C30: Valore assoluto | D30: N° incontri informativi, servizi televisivi o radiofonici, pieghevoli pubblicitari, guide pratiche pubblicate, uscite stampa | E30: Altro (specificare sotto) | F30: 1 | G30: 1 | H30: 1 | I30: 1
B31: Se altro, indicare qui | C31: Se altro, indicare qui | E31: fonti varie | L31: Se altro, indicare qui | M31: Se altro, indicare qui | O31: Se altro, indicare qui
B33: Indicatore | C33: (titolo) | L33: Indicatore | M33: (titolo)
B34: Cosa misura | L34: Cosa misura
B35: Tipologia | C35: Unità di misura | D35: Algoritmo di calcolo | E35: Fonte dei dati | F35: Ultimo valore osservato | G35: Risultato atteso anno n | H35: Risultato atteso anno n+1 | I35: Risultato atteso anno n+2 | L35: Tipologia | M35: Unità di misura | N35: Algoritmo di calcolo | O35: Fonte dei dati | P35: Ultimo valore osservato | Q35: Risultato atteso anno n | R35: Risultato atteso anno n+1 | S35: Risultato atteso anno n+2
B37: Se altro, indicare qui | C37: Se altro, indicare qui | E37: Se altro, indicare qui | L37: Se altro, indicare qui | M37: Se altro, indicare qui | O37: Se altro, indicare qui
B39: Indicatore | C39: (titolo) | L39: Indicatore | M39: (titolo)
B40: Cosa misura | L40: Cosa misura
B41: Tipologia | C41: Unità di misura | D41: Algoritmo di calcolo | E41: Fonte dei dati | F41: Ultimo valore osservato | G41: Risultato atteso anno n | H41: Risultato atteso anno n+1 | I41: Risultato atteso anno n+2 | L41: Tipologia | M41: Unità di misura | N41: Algoritmo di calcolo | O41: Fonte dei dati | P41: Ultimo valore osservato | Q41: Risultato atteso anno n | R41: Risultato atteso anno n+1 | S41: Risultato atteso anno n+2
B43: Se altro, indicare qui | C43: Se altro, indicare qui | E43: Se altro, indicare qui | L43: Se altro, indicare qui | M43: Se altro, indicare qui | O43: Se altro, indicare qui
B45: Obiettivo | C45: Titolo | D45: =Generale!H7 -> Aumentare la partecipazione delle associazioni di categoria delle imprese in tema di legalità e lotta alla criminalità organizzata | L45: Obiettivo | M45: Titolo | N45: =+Generale!H11 -> 0
C46: Descrizione | D46: Indagini volte all'individuazione di forme di infiltrazioni criminali nelle imprese | M46: Descrizione
C47: Arco temporale per la realizzazione | D47: Triennio | M47: Arco temporale per la realizzazione
C48: Centro di responsabilità | D48: Area Amministrazione interna e Servizi alle CCIAA | M48: Centro di responsabilità
C49: Risorse finanziarie | D49: Triennio: 15.000 | M49: Risorse finanziarie
B50: =+Generale!G7 -> 012-004-002 | L50: =+Generale!G11 -> 
C51: Nr indicatori associati | D51: 1 | E51: <<< nb: indicare preventivamente il Nr indicatori associati all'obiettivo | M51: Nr indicatori associati | N51: 1 | O51: <<< nb: indicare preventivamente il Nr indicatori associati all'obiettivo
B54: Indicatore | C54: Attività di indagine, prevenzione e segnalazione
B55: Cosa misura | C55: Il grado di iniziativa attività dell' Ente sui temi della concorrenza e tutela del consumatore
B56: Tipologia | C56: Unità di misura | D56: Algoritmo di calcolo | E56: Fonte dei dati | F56: Ultimo valore osservato - cons. 2021 | G56: Risultato atteso anno 2023 | H56: Risultato atteso anno 2024 | I56: Risultato atteso anno 2025
B57: realizzazione fisica | C57: Valore assoluto | D57: Numero di indagini e studi svolti nell'anno | F57: 1 | G57: 1 | H57: 1 | I57: 1
B58: Se altro, indicare qui | C58: Se altro, indicare qui | E58: rilevazione interna
B60: Indicatore | C60: (titolo) | L60: Indicatore | M60: (titolo)
B61: Cosa misura | L61: Cosa misura
B62: Tipologia | C62: Unità di misura | D62: Algoritmo di calcolo | E62: Fonte dei dati | F62: Ultimo valore osservato | G62: Risultato atteso anno n | H62: Risultato atteso anno n+1 | I62: Risultato atteso anno n+2 | L62: Tipologia | M62: Unità di misura | N62: Algoritmo di calcolo | O62: Fonte dei dati | P62: Ultimo valore osservato | Q62: Risultato atteso anno n | R62: Risultato atteso anno n+1 | S62: Risultato atteso anno n+2
B64: Se altro, indicare qui | C64: Se altro, indicare qui | E64: Se altro, indicare qui | L64: Se altro, indicare qui | M64: Se altro, indicare qui | O64: Se altro, indicare qui
B66: Indicatore | C66: (titolo) | L66: Indicatore | M66: (titolo)
B67: Cosa misura | L67: Cosa misura
B68: Tipologia | C68: Unità di misura | D68: Algoritmo di calcolo | E68: Fonte dei dati | F68: Ultimo valore osservato | G68: Risultato atteso anno n | H68: Risultato atteso anno n+1 | I68: Risultato atteso anno n+2 | L68: Tipologia | M68: Unità di misura | N68: Algoritmo di calcolo | O68: Fonte dei dati | P68: Ultimo valore osservato | Q68: Risultato atteso anno n | R68: Risultato atteso anno n+1 | S68: Risultato atteso anno n+2
B70: Se altro, indicare qui | C70: Se altro, indicare qui | E70: Se altro, indicare qui | L70: Se altro, indicare qui | M70: Se altro, indicare qui | O70: Se altro, indicare qui
B72: Indicatore | C72: (titolo) | L72: Indicatore
B73: Cosa misura | L73: Cosa misura
B74: Tipologia | C74: Unità di misura | D74: Algoritmo di calcolo | E74: Fonte dei dati | F74: Ultimo valore osservato | G74: Risultato atteso anno n | H74: Risultato atteso anno n+1 | I74: Risultato atteso anno n+2 | L74: Tipologia | M74: Unità di misura | N74: Algoritmo di calcolo | O74: Fonte dei dati | P74: Ultimo valore osservato | Q74: Risultato atteso anno n | R74: Risultato atteso anno n+1 | S74: Risultato atteso anno n+2
B76: Se altro, indicare qui | C76: Se altro, indicare qui | E76: Se altro, indicare qui | L76: Se altro, indicare qui | M76: Se altro, indicare qui | O76: Se altro, indicare qui
B78: Indicatore | C78: (titolo) | L78: Indicatore
B79: Cosa misura | L79: Cosa misura
B80: Tipologia | C80: Unità di misura | D80: Algoritmo di calcolo | E80: Fonte dei dati | F80: Ultimo valore osservato | G80: Risultato atteso anno n | H80: Risultato atteso anno n+1 | I80: Risultato atteso anno n+2 | L80: Tipologia | M80: Unità di misura | N80: Algoritmo di calcolo | O80: Fonte dei dati | P80: Ultimo valore osservato | Q80: Risultato atteso anno n | R80: Risultato atteso anno n+1 | S80: Risultato atteso anno n+2
B82: Se altro, indicare qui | C82: Se altro, indicare qui | E82: Se altro, indicare qui | L82: Se altro, indicare qui | M82: Se altro, indicare qui | O82: Se altro, indicare qui
B84: Missione | C84: 012 - Regolazione dei mercati | L84: Missione | M84: 012 - Regolazione dei mercati
B86: Programma | C86: 004 - Vigilanza sui mercati e sui prodotti, promozione della concorrenza e tutela dei consumatori | L86: Programma | M86: 004 - Vigilanza sui mercati e sui prodotti, promozione della concorrenza e tutela dei consumatori
B89: Obiettivo | C89: Titolo | D89: =+Generale!H8 -> 0 | L89: Obiettivo | M89: Titolo | N89: =+Generale!H12 -> 0
C90: Descrizione | M90: Descrizione
C91: Arco temporale realizzazione | M91: Arco temporale realizzazione
C92: Centro di responsabilità | M92: Centro di responsabilità
C93: Risorse finanziarie | M93: Risorse finanziarie
B94: =+Generale!G8 ->  | L94: =+Generale!G12 -> 
C95: Nr indicatori associati | D95: 1 | E95: <<< nb: indicare preventivamente il Nr indicatori associati all'obiettivo | M95: Nr indicatori associati | N95: 1 | O95: <<< nb: indicare preventivamente il Nr indicatori associati all'obiettivo
L98: Indicatore | M98: (titolo)
L99: Cosa misura
L100: Tipologia | M100: Unità di misura | N100: Algoritmo di calcolo | O100: Fonte dei dati | P100: Ultimo valore osservato | Q100: Risultato atteso anno n | R100: Risultato atteso anno n+1 | S100: Risultato atteso anno n+2
L102: Se altro, indicare qui | M102: Se altro, indicare qui | O102: Se altro, indicare qui
B104: Indicatore | C104: (titolo) | L104: Indicatore | M104: (titolo)
B105: Cosa misura | L105: Cosa misura
B106: Tipologia | C106: Unità di misura | D106: Algoritmo di calcolo | E106: Fonte dei dati | F106: Ultimo valore osservato | G106: Risultato atteso anno n | H106: Risultato atteso anno n+1 | I106: Risultato atteso anno n+2 | L106: Tipologia | M106: Unità di misura | N106: Algoritmo di calcolo | O106: Fonte dei dati | P106: Ultimo valore osservato | Q106: Risultato atteso anno n | R106: Risultato atteso anno n+1 | S106: Risultato atteso anno n+2
B108: Se altro, indicare qui | C108: Se altro, indicare qui | E108: Se altro, indicare qui | L108: Se altro, indicare qui | M108: Se altro, indicare qui | O108: Se altro, indicare qui
B110: Indicatore | C110: (titolo) | L110: Indicatore | M110: (titolo)
B111: Cosa misura | L111: Cosa misura
B112: Tipologia | C112: Unità di misura | D112: Algoritmo di calcolo | E112: Fonte dei dati | F112: Ultimo valore osservato | G112: Risultato atteso anno n | H112: Risultato atteso anno n+1 | I112: Risultato atteso anno n+2 | L112: Tipologia | M112: Unità di misura | N112: Algoritmo di calcolo | O112: Fonte dei dati | P112: Ultimo valore osservato | Q112: Risultato atteso anno n | R112: Risultato atteso anno n+1 | S112: Risultato atteso anno n+2
B114: Se altro, indicare qui | C114: Se altro, indicare qui | E114: Se altro, indicare qui | L114: Se altro, indicare qui | M114: Se altro, indicare qui | O114: Se altro, indicare qui
B116: Indicatore | C116: (titolo) | L116: Indicatore | M116: (titolo)
B117: Cosa misura | L117: Cosa misura
B118: Tipologia | C118: Unità di misura | D118: Algoritmo di calcolo | E118: Fonte dei dati | F118: Ultimo valore osservato | G118: Risultato atteso anno n | H118: Risultato atteso anno n+1 | I118: Risultato atteso anno n+2 | L118: Tipologia | M118: Unità di misura | N118: Algoritmo di calcolo | O118: Fonte dei dati | P118: Ultimo valore osservato | Q118: Risultato atteso anno n | R118: Risultato atteso anno n+1 | S118: Risultato atteso anno n+2
B120: Se altro, indicare qui | C120: Se altro, indicare qui | E120: Se altro, indicare qui | L120: Se altro, indicare qui | M120: Se altro, indicare qui | O120: Se altro, indicare qui
B122: Indicatore | C122: (titolo) | L122: Indicatore | M122: (titolo)
B123: Cosa misura
B124: Tipologia | C124: Unità di misura | D124: Algoritmo di calcolo | E124: Fonte dei dati | F124: Ultimo valore osservato | G124: Risultato atteso anno n | H124: Risultato atteso anno n+1 | I124: Risultato atteso anno n+2 | L124: Tipologia | M124: Unità di misura | N124: Algoritmo di calcolo | O124: Fonte dei dati | P124: Ultimo valore osservato | Q124: Risultato atteso anno n | R124: Risultato atteso anno n+1 | S124: Risultato atteso anno n+2
B126: Se altro, indicare qui | C126: Se altro, indicare qui | E126: Se altro, indicare qui | L126: Se altro, indicare qui | M126: Se altro, indicare qui | O126: Se altro, indicare qui
B128: Obiettivo | C128: Titolo | D128: =+Generale!H9 -> 0 | L128: Obiettivo | M128: Titolo | N128: =+Generale!H13 -> 0
C129: Descrizione | M129: Descrizione
C130: Arco temporale realizzazione | M130: Arco temporale realizzazione
C131: Centro di responsabilità | M131: Centro di responsabilità
C132: Risorse finanziarie | M132: Risorse finanziarie
B133: =+Generale!G9 ->  | L133: =+Generale!G13 -> 
C134: Nr indicatori associati | D134: 1 | E134: <<< nb: indicare preventivamente il Nr indicatori associati all'obiettivo | M134: Nr indicatori associati | N134: 1 | O134: <<< nb: indicare preventivamente il Nr indicatori associati all'obiettivo
B137: Indicatore | C137: (titolo) | L137: Indicatore | M137: (titolo)
B138: Cosa misura | L138: Cosa misura
B139: Tipologia | C139: Unità di misura | D139: Algoritmo di calcolo | E139: Fonte dei dati | F139: Ultimo valore osservato | G139: Risultato atteso anno n | H139: Risultato atteso anno n+1 | I139: Risultato atteso anno n+2 | L139: Tipologia | M139: Unità di misura | N139: Algoritmo di calcolo | O139: Fonte dei dati | P139: Ultimo valore osservato | Q139: Risultato atteso anno n | R139: Risultato atteso anno n+1 | S139: Risultato atteso anno n+2
B141: Se altro, indicare qui | C141: Se altro, indicare qui | E141: Se altro, indicare qui | L141: Se altro, indicare qui | M141: Se altro, indicare qui | O141: Se altro, indicare qui
B143: Indicatore | C143: (titolo) | L143: Indicatore | M143: (titolo)
B144: Cosa misura | L144: Cosa misura
B145: Tipologia | C145: Unità di misura | D145: Algoritmo di calcolo | E145: Fonte dei dati | F145: Ultimo valore osservato | G145: Risultato atteso anno n | H145: Risultato atteso anno n+1 | I145: Risultato atteso anno n+2 | L145: Tipologia | M145: Unità di misura | N145: Algoritmo di calcolo | O145: Fonte dei dati | P145: Ultimo valore osservato | Q145: Risultato atteso anno n | R145: Risultato atteso anno n+1 | S145: Risultato atteso anno n+2
B147: Se altro, indicare qui | C147: Se altro, indicare qui | E147: Se altro, indicare qui | L147: Se altro, indicare qui | M147: Se altro, indicare qui | O147: Se altro, indicare qui
B149: Indicatore | C149: (titolo) | L149: Indicatore | M149: (titolo)
B150: Cosa misura | L150: Cosa misura
B151: Tipologia | C151: Unità di misura | D151: Algoritmo di calcolo | E151: Fonte dei dati | F151: Ultimo valore osservato | G151: Risultato atteso anno n | H151: Risultato atteso anno n+1 | I151: Risultato atteso anno n+2 | L151: Tipologia | M151: Unità di misura | N151: Algoritmo di calcolo | O151: Fonte dei dati | P151: Ultimo valore osservato | Q151: Risultato atteso anno n | R151: Risultato atteso anno n+1 | S151: Risultato atteso anno n+2
B153: Se altro, indicare qui | C153: Se altro, indicare qui | E153: Se altro, indicare qui | L153: Se altro, indicare qui | M153: Se altro, indicare qui | O153: Se altro, indicare qui
B155: Indicatore | C155: (titolo) | L155: Indicatore | M155: (titolo)
B156: Cosa misura | L156: Cosa misura
B157: Tipologia | C157: Unità di misura | D157: Algoritmo di calcolo | E157: Fonte dei dati | F157: Ultimo valore osservato | G157: Risultato atteso anno n | H157: Risultato atteso anno n+1 | I157: Risultato atteso anno n+2 | L157: Tipologia | M157: Unità di misura | N157: Algoritmo di calcolo | O157: Fonte dei dati | P157: Ultimo valore osservato | Q157: Risultato atteso anno n | R157: Risultato atteso anno n+1 | S157: Risultato atteso anno n+2
B159: Se altro, indicare qui | C159: Se altro, indicare qui | E159: Se altro, indicare qui | L159: Se altro, indicare qui | M159: Se altro, indicare qui | O159: Se altro, indicare qui
B161: Indicatore | C161: (titolo) | L161: Indicatore | M161: (titolo)
B162: Cosa misura | L162: Cosa misura
B163: Tipologia | C163: Unità di misura | D163: Algoritmo di calcolo | E163: Fonte dei dati | F163: Ultimo valore osservato | G163: Risultato atteso anno n | H163: Risultato atteso anno n+1 | I163: Risultato atteso anno n+2 | L163: Tipologia | M163: Unità di misura | N163: Algoritmo di calcolo | O163: Fonte dei dati | P163: Ultimo valore osservato | Q163: Risultato atteso anno n | R163: Risultato atteso anno n+1 | S163: Risultato atteso anno n+2
B165: Se altro, indicare qui | C165: Se altro, indicare qui | E165: Se altro, indicare qui | L165: Se altro, indicare qui | M165: Se altro, indicare qui | O165: Se altro, indicare qui

Sheet 005_Internazionalizzazione
B1: Missione | C1: 016 - Commercio internazionale ed internazionalizzazione del sistema produttivo | L1: Missione | M1: 016 - Commercio internazionale ed internazionalizzazione del sistema produttivo
B3: Programma | C3: 005 - Sostegno all'internazionalizzazione delle imprese e promozione del made in Italy | L3: Programma | M3: 005 - Sostegno all'internazionalizzazione delle imprese e promozione del made in Italy
B6: Obiettivo | C6: Titolo | D6: =+Generale!K6 -> Fornire supporto e competenze per sostenere l'esportazione nel Mercato unico e mercati internazionali | L6: Obiettivo | M6: Titolo | N6: =+Generale!K10 -> 0
C7: Descrizione | D7: Attività di accompagnamento e consulenza ad aziende del territorio volte ad incrementare l'esportazione ed i rapporti commerciali con partner esteri | M7: Descrizione
C8: Arco temporale realizzazione | D8: Triennio | M8: Arco temporale realizzazione
C9: Centro di responsabilità | D9: Area Impresa e Territorio - Area Amministrazione interna e Servizi alle CCIAA | M9: Centro di responsabilità
C10: Risorse economiche | D10: Triennio: 925.000 | M10: Risorse finanziarie
B11: =+Generale!J6 -> 016-005-001 | L11: =+Generale!J10 -> 
C12: Nr indicatori associati | D12: 6 | E12: <<< nb: indicare preventivamente il Nr indicatori associati all'obiettivo | M12: Nr indicatori associati | O12: <<< nb: indicare preventivamente il Nr indicatori associati all'obiettivo
B15: Indicatore | C15: Grado di partecipazione alle iniziative di internazionalizzazione in mercati esteri | L15: Indicatore | M15: (titolo)
B16: Cosa misura | C16: Misura il grado di partecipazione alle iniziative dell' Ente in tema di internazionalizzazione | L16: Cosa misura
B17: Tipologia | C17: Unità di misura | D17: Algoritmo di calcolo | E17: Fonte dei dati | F17: Ultimo valore osservato - cons. 2021 | G17: Risultato atteso anno 2023 | H17: Risultato atteso anno 2024 | I17: Risultato atteso anno 2025 | L17: Tipologia | M17: Unità di misura | N17: Algoritmo di calcolo | O17: Fonte dei dati | P17: Ultimo valore osservato | Q17: Risultato atteso anno n | R17: Risultato atteso anno n+1 | S17: Risultato atteso anno n+2
B18: altre tipologie (specificare sotto) | C18: Valore assoluto | D18: Imprese della regione che hanno aderito alle iniziative di internazionalizzazione realizzate dall'ente | E18: Altro (specificare sotto) | F18: 275 | G18: 300 | H18: 300 | I18: 300
B19: Efficacia | C19: Se altro, indicare qui | E19: Relazione attività | L19: Se altro, indicare qui | M19: Se altro, indicare qui | O19: Se altro, indicare qui
B21: Indicatore | C21: Partecipazione a seminari per operatori sul tema dell'internazionalizzazione | L21: Indicatore
B22: Cosa misura | C22: Qualificazione del capitale umano del territorio (aziende e professionisti) sul tema dell'internazionalizzazione | L22: Cosa misura
B23: Tipologia | C23: Unità di misura | D23: Algoritmo di calcolo | E23: Fonte dei dati | F23: Ultimo valore osservato - cons. 2021 | G23: Risultato atteso anno 2023 | H23: Risultato atteso anno 2024 | I23: Risultato atteso anno 2025 | L23: Tipologia | M23: Unità di misura | N23: Algoritmo di calcolo | O23: Fonte dei dati | P23: Ultimo valore osservato | Q23: Risultato atteso anno n | R23: Risultato atteso anno n+1 | S23: Risultato atteso anno n+2
B24: di realizzazione fisica | C24: Valore assoluto | D24: numero di partecipanti anno | E24: Altro (specificare sotto) | F24: 1000 | G24: 1000 | H24: 1000 | I24: 1000
B25: Se altro, indicare qui | C25: Se altro, indicare qui | E25: Relazione attività | L25: Se altro, indicare qui | M25: Se altro, indicare qui | O25: Se altro, indicare qui
B27: Indicatore | C27: Incidenza personale dedicato alle attvità di internazionalizzazione | L27: Indicatore | M27: (titolo)
B28: Cosa misura | C28: Misura l'impegno dell'Unione regionale nell'offrire servizi di internazionalizzazione | L28: Cosa misura
B29: Tipologia | C29: Unità di misura | D29: Algoritmo di calcolo | E29: Fonte dei dati | F29: Ultimo valore osservato - cons. 2021 | G29: Risultato atteso anno 2023 | H29: Risultato atteso anno 2024 | I29: Risultato atteso anno 2025 | L29: Tipologia | M29: Unità di misura | N29: Algoritmo di calcolo | O29: Fonte dei dati | P29: Ultimo valore osservato | Q29: Risultato atteso anno n | R29: Risultato atteso anno n+1 | S29: Risultato atteso anno n+2
C30: Percentuale | D30: Personale (espresso in FTE) impiegato in attività di internazionalizzazione nell'anno "n"-1/Personale (espresso in FTE) impiegato nell'anno "n" | E30: Altro (specificare sotto) | F30: =4/28 -> 0.1428571429 | G30: =F30 -> 0.1428571429 | H30: =G30 -> 0.1428571429 | I30: 0.1428571429
B31: Qualità | C31: Se altro, indicare qui | E31: rilevazione interna UR | L31: Se altro, indicare qui | M31: Se altro, indicare qui | O31: Se altro, indicare qui
B33: Obiettivo | C33: Titolo | D33: =+Generale!K7 -> Attivare meccanismi di ricerca ed individuazione di partner esteri | L33: Obiettivo | M33: Titolo | N33: =+Generale!K11 -> 0
C34: Descrizione | D34: Attività di ricerca partnership commerciale, tecnologica e di ricerca | M34: Descrizione
C35: Arco temporale per la realizzazione | D35: Triennio | M35: Arco temporale per la realizzazione
C36: Centro di responsabilità | D36: Area Impresa e Territorio | M36: Centro di responsabilità
C37: Risorse finanziarie | D37: Triennio: 75.000 | M37: Risorse finanziarie
B38: =+Generale!J7 -> 016-005-002 | L38: =+Generale!J11 -> 
C39: Nr indicatori associati | D39: 4 | E39: <<< nb: indicare preventivamente il Nr indicatori associati all'obiettivo | M39: Nr indicatori associati | O39: <<< nb: indicare preventivamente il Nr indicatori associati all'obiettivo
B42: Indicatore | C42: Incontri B2B organizzati per aziende venete | L42: Indicatore | M42: (titolo)
B43: Cosa misura | C43: Numero di incontri calendarizzati ed effettuati da aziende venete con aziende straniere | L43: Cosa misura
B44: Tipologia | C44: Unità di misura | D44: Algoritmo di calcolo | E44: Fonte dei dati | F44: Ultimo valore osservato - cons. 2021 | G44: Risultato atteso anno 2023 | H44: Risultato atteso anno 2024 | I44: Risultato atteso anno 2025 | L44: Tipologia | M44: Unità di misura | N44: Algoritmo di calcolo | O44: Fonte dei dati | P44: Ultimo valore osservato | Q44: Risultato atteso anno n | R44: Risultato atteso anno n+1 | S44: Risultato atteso anno n+2
B45: di realizzazione fisica | C45: Valore assoluto | D45: numero di incontri | E45: Altro (specificare sotto) | F45: 9 | G45: 12 | H45: 12 | I45: 12
B46: Se altro, indicare qui | C46: Se altro, indicare qui | E46: Relazione attività | L46: Se altro, indicare qui | M46: Se altro, indicare qui | O46: Se altro, indicare qui
B48: Indicatore | C48: Profili inseriti nel database di EACI "Merlin" | L48: Indicatore | M48: (titolo)
B49: Cosa misura | C49: Attività dell'ufficio svolta per elaborare profili di collaborazione commerciale, tecnologica e di ricerca con partner esteri | L49: Cosa misura
B50: Tipologia | C50: Unità di misura | D50: Algoritmo di calcolo | E50: Fonte dei dati | F50: Ultimo valore osservato - cons. 2021 | G50: Risultato atteso anno 2023 | H50: Risultato atteso anno 2024 | I50: Risultato atteso anno 2025 | L50: Tipologia | M50: Unità di misura | N50: Algoritmo di calcolo | O50: Fonte dei dati | P50: Ultimo valore osservato | Q50: Risultato atteso anno n | R50: Risultato atteso anno n+1 | S50: Risultato atteso anno n+2
B51: di realizzazione fisica | C51: Valore assoluto | D51: numero di profili inseriti e validati nel POD | E51: Altro (specificare sotto) | F51: 5 | G51: 5 | H51: 5 | I51: 5
B52: Se altro, indicare qui | C52: Se altro, indicare qui | E52: database europeo POD | L52: Se altro, indicare qui | M52: Se altro, indicare qui | O52: Se altro, indicare qui
B54: Indicatore | C54: Espressione d'interesse ricevute | L54: Indicatore | M54: (titolo)
B55: Cosa misura | C55: Interesse di aziende estere nei profili di aziende venete inserite nel database europeo POD | L55: Cosa misura
B56: Tipologia | C56: Unità di misura | D56: Algoritmo di calcolo | E56: Fonte dei dati | F56: Ultimo valore osservato - cons. 2021 | G56: Risultato atteso anno 2023 | H56: Risultato atteso anno 2024 | I56: Risultato atteso anno 2025 | L56: Tipologia | M56: Unità di misura | N56: Algoritmo di calcolo | O56: Fonte dei dati | P56: Ultimo valore osservato | Q56: Risultato atteso anno n | R56: Risultato atteso anno n+1 | S56: Risultato atteso anno n+2
B57: di risultato (otuput) | C57: Percentuale | D57: numero di profili inseriti/numero di espressioni di interesse ricevute | E57: Altro (specificare sotto) | F57: 119 | G57: 120 | H57: 120 | I57: 120
B58: Se altro, indicare qui | C58: Se altro, indicare qui | E58: database europeo POD | L58: Se altro, indicare qui | M58: Se altro, indicare qui | O58: Se altro, indicare qui
B60: Indicatore | C60: Accordi sottoscritti | L60: Indicatore
B61: Cosa misura | C61: Il numero di accordi raggiunti dalle aziende che hanno inserito un profilo di collaborazione in POD | L61: Cosa misura
B62: Tipologia | C62: Unità di misura | D62: Algoritmo di calcolo | E62: Fonte dei dati | F62: Ultimo valore osservato - cons. 2021 | G62: Risultato atteso anno 2023 | H62: Risultato atteso anno 2024 | I62: Risultato atteso anno 2025 | L62: Tipologia | M62: Unità di misura | N62: Algoritmo di calcolo | O62: Fonte dei dati | P62: Ultimo valore osservato | Q62: Risultato atteso anno n | R62: Risultato atteso anno n+1 | S62: Risultato atteso anno n+2
B63: di impatto (outcome) | C63: Valore assoluto | D63: numero achievement | E63: Altro (specificare sotto) | F63: 10 | G63: 10 | H63: 10 | I63: 10
B64: Se altro, indicare qui | C64: Se altro, indicare qui | E64: documentazione ufficiale prevista da modulistica EEN | L64: Se altro, indicare qui | M64: Se altro, indicare qui | O64: Se altro, indicare qui
B66: Indicatore | C66: (titolo) | L66: Indicatore
B67: Cosa misura | L67: Cosa misura
B68: Tipologia | C68: Unità di misura | D68: Algoritmo di calcolo | E68: Fonte dei dati | F68: Ultimo valore osservato | G68: Risultato atteso anno n | H68: Risultato atteso anno n+1 | I68: Risultato atteso anno n+2 | L68: Tipologia | M68: Unità di misura | N68: Algoritmo di calcolo | O68: Fonte dei dati | P68: Ultimo valore osservato | Q68: Risultato atteso anno n | R68: Risultato atteso anno n+1 | S68: Risultato atteso anno n+2
B70: Se altro, indicare qui | C70: Se altro, indicare qui | E70: Se altro, indicare qui | L70: Se altro, indicare qui | M70: Se altro, indicare qui | O70: Se altro, indicare qui
B72: Missione | C72: 016 - Commercio internazionale ed internazionalizzazione del sistema produttivo | L72: Missione | M72: 016 - Commercio internazionale ed internazionalizzazione del sistema produttivo
B74: Programma | C74: 005 - Sostegno all'internazionalizzazione delle imprese e promozione del made in Italy | L74: Programma | M74: 005 - Sostegno all'internazionalizzazione delle imprese e promozione del made in Italy
B77: Obiettivo | C77: Titolo | D77: =+Generale!K8 -> 0 | L77: Obiettivo | M77: Titolo | N77: =+Generale!K12 -> 0
C78: Descrizione | M78: Descrizione
C79: Arco temporale realizzazione | M79: Arco temporale realizzazione
C80: Centro di responsabilità | M80: Centro di responsabilità
C81: Risorse finanziarie | M81: Risorse finanziarie
B82: =+Generale!J8 ->  | L82: =+Generale!J12 -> 
C83: Nr indicatori associati | D83: 1 | E83: <<< nb: indicare preventivamente il Nr indicatori associati all'obiettivo | M83: Nr indicatori associati | O83: <<< nb: indicare preventivamente il Nr indicatori associati all'obiettivo
B86: Indicatore | C86: (titolo) | L86: Indicatore | M86: (titolo)
B87: Cosa misura | L87: Cosa misura
B88: Tipologia | C88: Unità di misura | D88: Algoritmo di calcolo | E88: Fonte dei dati | F88: Ultimo valore osservato | G88: Risultato atteso anno n | H88: Risultato atteso anno n+1 | I88: Risultato atteso anno n+2 | L88: Tipologia | M88: Unità di misura | N88: Algoritmo di calcolo | O88: Fonte dei dati | P88: Ultimo valore osservato | Q88: Risultato atteso anno n | R88: Risultato atteso anno n+1 | S88: Risultato atteso anno n+2
B90: Se altro, indicare qui | C90: Se altro, indicare qui | E90: Se altro, indicare qui | L90: Se altro, indicare qui | M90: Se altro, indicare qui | O90: Se altro, indicare qui
B92: Indicatore | C92: (titolo) | L92: Indicatore | M92: (titolo)
B93: Cosa misura | L93: Cosa misura
B94: Tipologia | C94: Unità di misura | D94: Algoritmo di calcolo | E94: Fonte dei dati | F94: Ultimo valore osservato | G94: Risultato atteso anno n | H94: Risultato atteso anno n+1 | I94: Risultato atteso anno n+2 | L94: Tipologia | M94: Unità di misura | N94: Algoritmo di calcolo | O94: Fonte dei dati | P94: Ultimo valore osservato | Q94: Risultato atteso anno n | R94: Risultato atteso anno n+1 | S94: Risultato atteso anno n+2
B96: Se altro, indicare qui | C96: Se altro, indicare qui | E96: Se altro, indicare qui | L96: Se altro, indicare qui | M96: Se altro, indicare qui | O96: Se altro, indicare qui
B98: Indicatore | C98: (titolo) | L98: Indicatore | M98: (titolo)
B99: Cosa misura | L99: Cosa misura
B100: Tipologia | C100: Unità di misura | D100: Algoritmo di calcolo | E100: Fonte dei dati | F100: Ultimo valore osservato | G100: Risultato atteso anno n | H100: Risultato atteso anno n+1 | I100: Risultato atteso anno n+2 | L100: Tipologia | M100: Unità di misura | N100: Algoritmo di calcolo | O100: Fonte dei dati | P100: Ultimo valore osservato | Q100: Risultato atteso anno n | R100: Risultato atteso anno n+1 | S100: Risultato atteso anno n+2
B102: Se altro, indicare qui | C102: Se altro, indicare qui | E102: Se altro, indicare qui | L102: Se altro, indicare qui | M102: Se altro, indicare qui | O102: Se altro, indicare qui
B104: Indicatore | C104: (titolo) | L104: Indicatore | M104: (titolo)
B105: Cosa misura | L105: Cosa misura
B106: Tipologia | C106: Unità di misura | D106: Algoritmo di calcolo | E106: Fonte dei dati | F106: Ultimo valore osservato | G106: Risultato atteso anno n | H106: Risultato atteso anno n+1 | I106: Risultato atteso anno n+2 | L106: Tipologia | M106: Unità di misura | N106: Algoritmo di calcolo | O106: Fonte dei dati | P106: Ultimo valore osservato | Q106: Risultato atteso anno n | R106: Risultato atteso anno n+1 | S106: Risultato atteso anno n+2
B108: Se altro, indicare qui | C108: Se altro, indicare qui | E108: Se altro, indicare qui | L108: Se altro, indicare qui | M108: Se altro, indicare qui | O108: Se altro, indicare qui
B110: Indicatore | C110: (titolo) | L110: Indicatore | M110: (titolo)
B111: Cosa misura
B112: Tipologia | C112: Unità di misura | D112: Algoritmo di calcolo | E112: Fonte dei dati | F112: Ultimo valore osservato | G112: Risultato atteso anno n | H112: Risultato atteso anno n+1 | I112: Risultato atteso anno n+2 | L112: Tipologia | M112: Unità di misura | N112: Algoritmo di calcolo | O112: Fonte dei dati | P112: Ultimo valore osservato | Q112: Risultato atteso anno n | R112: Risultato atteso anno n+1 | S112: Risultato atteso anno n+2
B114: Se altro, indicare qui | C114: Se altro, indicare qui | E114: Se altro, indicare qui | L114: Se altro, indicare qui | M114: Se altro, indicare qui | O114: Se altro, indicare qui
B116: Obiettivo | C116: Titolo | D116: =+Generale!K9 -> 0 | L116: Obiettivo | M116: Titolo | N116: =+Generale!K13 -> 0
C117: Descrizione | M117: Descrizione
C118: Arco temporale realizzazione | M118: Arco temporale realizzazione
C119: Centro di responsabilità | M119: Centro di responsabilità
C120: Risorse finanziarie | M120: Risorse finanziarie
B121: =+Generale!J9 ->  | L121: =+Generale!J13 -> 
C122: Nr indicatori associati | E122: <<< nb: indicare preventivamente il Nr indicatori associati all'obiettivo | M122: Nr indicatori associati | O122: <<< nb: indicare preventivamente il Nr indicatori associati all'obiettivo
B125: Indicatore | C125: (titolo) | L125: Indicatore | M125: (titolo)
B126: Cosa misura | L126: Cosa misura
B127: Tipologia | C127: Unità di misura | D127: Algoritmo di calcolo | E127: Fonte dei dati | F127: Ultimo valore osservato | G127: Risultato atteso anno n | H127: Risultato atteso anno n+1 | I127: Risultato atteso anno n+2 | L127: Tipologia | M127: Unità di misura | N127: Algoritmo di calcolo | O127: Fonte dei dati | P127: Ultimo valore osservato | Q127: Risultato atteso anno n | R127: Risultato atteso anno n+1 | S127: Risultato atteso anno n+2
B129: Se altro, indicare qui | C129: Se altro, indicare qui | E129: Se altro, indicare qui | L129: Se altro, indicare qui | M129: Se altro, indicare qui | O129: Se altro, indicare qui
B131: Indicatore | C131: (titolo) | L131: Indicatore | M131: (titolo)
B132: Cosa misura | L132: Cosa misura
B133: Tipologia | C133: Unità di misura | D133: Algoritmo di calcolo | E133: Fonte dei dati | F133: Ultimo valore osservato | G133: Risultato atteso anno n | H133: Risultato atteso anno n+1 | I133: Risultato atteso anno n+2 | L133: Tipologia | M133: Unità di misura | N133: Algoritmo di calcolo | O133: Fonte dei dati | P133: Ultimo valore osservato | Q133: Risultato atteso anno n | R133: Risultato atteso anno n+1 | S133: Risultato atteso anno n+2
B135: Se altro, indicare qui | C135: Se altro, indicare qui | E135: Se altro, indicare qui | L135: Se altro, indicare qui | M135: Se altro, indicare qui | O135: Se altro, indicare qui
B137: Indicatore | C137: (titolo) | L137: Indicatore | M137: (titolo)
B138: Cosa misura | L138: Cosa misura
B139: Tipologia | C139: Unità di misura | D139: Algoritmo di calcolo | E139: Fonte dei dati | F139: Ultimo valore osservato | G139: Risultato atteso anno n | H139: Risultato atteso anno n+1 | I139: Risultato atteso anno n+2 | L139: Tipologia | M139: Unità di misura | N139: Algoritmo di calcolo | O139: Fonte dei dati | P139: Ultimo valore osservato | Q139: Risultato atteso anno n | R139: Risultato atteso anno n+1 | S139: Risultato atteso anno n+2
B141: Se altro, indicare qui | C141: Se altro, indicare qui | E141: Se altro, indicare qui | L141: Se altro, indicare qui | M141: Se altro, indicare qui | O141: Se altro, indicare qui
B143: Indicatore | C143: (titolo) | L143: Indicatore | M143: (titolo)
B144: Cosa misura | L144: Cosa misura
B145: Tipologia | C145: Unità di misura | D145: Algoritmo di calcolo | E145: Fonte dei dati | F145: Ultimo valore osservato | G145: Risultato atteso anno n | H145: Risultato atteso anno n+1 | I145: Risultato atteso anno n+2 | L145: Tipologia | M145: Unità di misura | N145: Algoritmo di calcolo | O145: Fonte dei dati | P145: Ultimo valore osservato | Q145: Risultato atteso anno n | R145: Risultato atteso anno n+1 | S145: Risultato atteso anno n+2
B147: Se altro, indicare qui | C147: Se altro, indicare qui | E147: Se altro, indicare qui | L147: Se altro, indicare qui | M147: Se altro, indicare qui | O147: Se altro, indicare qui
B149: Indicatore | C149: (titolo) | L149: Indicatore | M149: (titolo)
B150: Cosa misura | L150: Cosa misura
B151: Tipologia | C151: Unità di misura | D151: Algoritmo di calcolo | E151: Fonte dei dati | F151: Ultimo valore osservato | G151: Risultato atteso anno n | H151: Risultato atteso anno n+1 | I151: Risultato atteso anno n+2 | L151: Tipologia | M151: Unità di misura | N151: Algoritmo di calcolo | O151: Fonte dei dati | P151: Ultimo valore osservato | Q151: Risultato atteso anno n | R151: Risultato atteso anno n+1 | S151: Risultato atteso anno n+2
B153: Se altro, indicare qui | C153: Se altro, indicare qui | E153: Se altro, indicare qui | L153: Se altro, indicare qui | M153: Se altro, indicare qui | O153: Se altro, indicare qui

Sheet 002_Indirizzo politico
B1: Missione | C1: 032 - Servizi istituzionali e generali delle amministrazioni pubbliche | L1: Missione | M1: 032 - Servizi istituzionali e generali delle amministrazioni pubbliche
B3: Programma | C3: 002 - Indirizzo politico | L3: Programma | M3: 002 - Indirizzo politico
B6: Obiettivo | C6: Titolo | D6: =+Generale!N6 -> Aumentare la trasparenza e la comunicazione interna ed esterna dell'Ente | L6: Obiettivo | M6: Titolo | N6: =+Generale!N10 -> 0
C7: Descrizione | D7: Indica il grado di incremento della comunicazione istituzionale circa gli indirizzi strategici dell'Ente al pubblico | M7: Descrizione
C8: Arco temporale realizzazione | D8: Triennio | M8: Arco temporale realizzazione
C9: Centro di responsabilità | D9: Area Amministrazione interna e servizi alle CCIAA | M9: Centro di responsabilità
C10: Risorse economiche | D10: Triennio: 180.000 | M10: Risorse finanziarie
B11: =+Generale!M6 -> 032-002-001 | L11: =+Generale!M10 -> 
C12: Nr indicatori associati | D12: 2 | E12: <<< nb: indicare preventivamente il Nr indicatori associati all'obiettivo | M12: Nr indicatori associati | O12: <<< nb: indicare preventivamente il Nr indicatori associati all'obiettivo
B15: Indicatore | C15: Aumento della comunicazione al pubblico | L15: Indicatore | M15: (titolo)
B16: Cosa misura | C16: Misura l'incremento del numero di comunicazioni al pubblico e notizie diffuse tramite i siti web istituzionali e newletters periodiche | L16: Cosa misura
B17: Tipologia | C17: Unità di misura | D17: Algoritmo di calcolo | E17: Fonte dei dati | F17: Ultimo valore osservato - cons. 2021 | G17: Risultato atteso anno 2023 | H17: Risultato atteso anno 2024 | I17: Risultato atteso anno 2025 | L17: Tipologia | M17: Unità di misura | N17: Algoritmo di calcolo | O17: Fonte dei dati | P17: Ultimo valore osservato | Q17: Risultato atteso anno n | R17: Risultato atteso anno n+1 | S17: Risultato atteso anno n+2
B18: altre tipologie (specificare sotto) | C18: Percentuale | D18: (nr comunicati stampa dell'Ente nell'anno n - nr comunicati stampa nell'anno n-1) /( nr comunicati stampa nell'anno n-1) * 100 | E18: Altro (specificare sotto) | F18: =(58-49)/49 -> 0.1836734694 | G18: 0.2 | H18: 0.2 | I18: 0.2
B19: Qualità | C19: Se altro, indicare qui | E19: Siti web istituzionali e newletters | L19: Se altro, indicare qui | M19: Se altro, indicare qui | O19: Se altro, indicare qui
B21: Indicatore | C21: Aumento della comunicazione agli organi e all'interno | L21: Indicatore
B22: Cosa misura | C22: Misura l'incremento del numero di comunicazioni agli organi camerali e all'interno attraverso le notizie diffuse tramite il portale dedicato agli organi e allo staff | L22: Cosa misura
B23: Tipologia | C23: Unità di misura | D23: Algoritmo di calcolo | E23: Fonte dei dati | F23: Ultimo valore osservato - cons. 2021 | G23: Risultato atteso anno 2023 | H23: Risultato atteso anno 2024 | I23: Risultato atteso anno 2025 | L23: Tipologia | M23: Unità di misura | N23: Algoritmo di calcolo | O23: Fonte dei dati | P23: Ultimo valore osservato | Q23: Risultato atteso anno n | R23: Risultato atteso anno n+1 | S23: Risultato atteso anno n+2
B24: altre tipologie (specificare sotto) | C24: Percentuale | D24: n° notizie comunicate agli organi nell'anno n - nr notizie comunicate agli organi e pubblicate nel portale interno nell'anno n-1) / n° notizie comunicate agli organi nel portale interno nell'anno n-1) * 100 | F24: 0.01 | G24: 0.01 | H24: 0.01 | I24: 0.01
B25: Qualità | C25: Se altro, indicare qui | E25: Portale interno per gli organi | L25: Se altro, indicare qui | M25: Se altro, indicare qui | O25: Se altro, indicare qui
B27: Indicatore | C27: (titolo) | L27: Indicatore | M27: (titolo)
B28: Cosa misura | L28: Cosa misura
B29: Tipologia | C29: Unità di misura | D29: Algoritmo di calcolo | E29: Fonte dei dati | F29: Ultimo valore osservato | G29: Risultato atteso anno n | H29: Risultato atteso anno n+1 | I29: Risultato atteso anno n+2 | L29: Tipologia | M29: Unità di misura | N29: Algoritmo di calcolo | O29: Fonte dei dati | P29: Ultimo valore osservato | Q29: Risultato atteso anno n | R29: Risultato atteso anno n+1 | S29: Risultato atteso anno n+2
B31: Se altro, indicare qui | C31: Se altro, indicare qui | E31: Se altro, indicare qui | L31: Se altro, indicare qui | M31: Se altro, indicare qui | O31: Se altro, indicare qui
B33: Indicatore | C33: (titolo) | L33: Indicatore | M33: (titolo)
B34: Cosa misura | L34: Cosa misura
B35: Tipologia | C35: Unità di misura | D35: Algoritmo di calcolo | E35: Fonte dei dati | F35: Ultimo valore osservato | G35: Risultato atteso anno n | H35: Risultato atteso anno n+1 | I35: Risultato atteso anno n+2 | L35: Tipologia | M35: Unità di misura | N35: Algoritmo di calcolo | O35: Fonte dei dati | P35: Ultimo valore osservato | Q35: Risultato atteso anno n | R35: Risultato atteso anno n+1 | S35: Risultato atteso anno n+2
B37: Se altro, indicare qui | C37: Se altro, indicare qui | E37: Se altro, indicare qui | L37: Se altro, indicare qui | M37: Se altro, indicare qui | O37: Se altro, indicare qui
B39: Indicatore | C39: (titolo) | L39: Indicatore | M39: (titolo)
B40: Cosa misura | L40: Cosa misura
B41: Tipologia | C41: Unità di misura | D41: Algoritmo di calcolo | E41: Fonte dei dati | F41: Ultimo valore osservato | G41: Risultato atteso anno n | H41: Risultato atteso anno n+1 | I41: Risultato atteso anno n+2 | L41: Tipologia | M41: Unità di misura | N41: Algoritmo di calcolo | O41: Fonte dei dati | P41: Ultimo valore osservato | Q41: Risultato atteso anno n | R41: Risultato atteso anno n+1 | S41: Risultato atteso anno n+2
B43: Se altro, indicare qui | C43: Se altro, indicare qui | E43: Se altro, indicare qui | L43: Se altro, indicare qui | M43: Se altro, indicare qui | O43: Se altro, indicare qui
B45: Obiettivo | C45: Titolo | D45: =+Generale!N7 -> Garantire uno sviluppo strategico delle attività e una capacità di risposta ed adattamento alle nuove esigenze degli associati | L45: Obiettivo | M45: Titolo | N45: =+Generale!N11 -> 0
C46: Descrizione | D46: Indica il nr di decisioni prese nell'anno in condivisione con gli organi di governo dell'Ente | M46: Descrizione
C47: Arco temporale per la realizzazione | D47: Triennio | M47: Arco temporale per la realizzazione
C48: Centro di responsabilità | D48: Area Amministrazione interna e servizi alle CCIAA | M48: Centro di responsabilità
C49: Risorse finanziarie | D49: Triennio: 75.000 | M49: Risorse finanziarie
B50: =+Generale!M7 -> 032-002-002 | L50: =+Generale!M11 -> 
C51: Nr indicatori associati | D51: 1 | E51: <<< nb: indicare preventivamente il Nr indicatori associati all'obiettivo | M51: Nr indicatori associati | O51: <<< nb: indicare preventivamente il Nr indicatori associati all'obiettivo
B54: Indicatore | C54: Numero di decisioni e delibere di indirizzo/strategiche assunte nell' anno | L54: Indicatore | M54: (titolo)
B55: Cosa misura | C55: Il numero di decisioni strategiche e di indirizzo assunte dalla Direzione ed Organi | L55: Cosa misura
B56: Tipologia | C56: Unità di misura | D56: Algoritmo di calcolo | E56: Fonte dei dati | F56: Ultimo valore osservato - cons. 2021 | G56: Risultato atteso anno 2023 | H56: Risultato atteso anno 2024 | I56: Risultato atteso anno 2025 | L56: Tipologia | M56: Unità di misura | N56: Algoritmo di calcolo | O56: Fonte dei dati | P56: Ultimo valore osservato | Q56: Risultato atteso anno n | R56: Risultato atteso anno n+1 | S56: Risultato atteso anno n+2
B57: di risultato (otuput) | C57: Valore assoluto | D57: Numero di decisioni di indirizzo per l'anno | F57: 8 | G57: 8 | H57: 8 | I57: 8
B58: Se altro, indicare qui | C58: Se altro, indicare qui | E58: amministrazione trasparente UR | L58: Se altro, indicare qui | M58: Se altro, indicare qui | O58: Se altro, indicare qui
B60: Indicatore | C60: (titolo) | L60: Indicatore | M60: (titolo)
B61: Cosa misura | L61: Cosa misura
B62: Tipologia | C62: Unità di misura | D62: Algoritmo di calcolo | E62: Fonte dei dati | F62: Ultimo valore osservato | G62: Risultato atteso anno n | H62: Risultato atteso anno n+1 | I62: Risultato atteso anno n+2 | L62: Tipologia | M62: Unità di misura | N62: Algoritmo di calcolo | O62: Fonte dei dati | P62: Ultimo valore osservato | Q62: Risultato atteso anno n | R62: Risultato atteso anno n+1 | S62: Risultato atteso anno n+2
B64: Se altro, indicare qui | C64: Se altro, indicare qui | E64: Se altro, indicare qui | L64: Se altro, indicare qui | M64: Se altro, indicare qui | O64: Se altro, indicare qui
B66: Indicatore | C66: (titolo) | L66: Indicatore | M66: (titolo)
B67: Cosa misura | L67: Cosa misura
B68: Tipologia | C68: Unità di misura | D68: Algoritmo di calcolo | E68: Fonte dei dati | F68: Ultimo valore osservato | G68: Risultato atteso anno n | H68: Risultato atteso anno n+1 | I68: Risultato atteso anno n+2 | L68: Tipologia | M68: Unità di misura | N68: Algoritmo di calcolo | O68: Fonte dei dati | P68: Ultimo valore osservato | Q68: Risultato atteso anno n | R68: Risultato atteso anno n+1 | S68: Risultato atteso anno n+2
B70: Se altro, indicare qui | C70: Se altro, indicare qui | E70: Se altro, indicare qui | L70: Se altro, indicare qui | M70: Se altro, indicare qui | O70: Se altro, indicare qui
B72: Indicatore | C72: (titolo) | L72: Indicatore
B73: Cosa misura | L73: Cosa misura
B74: Tipologia | C74: Unità di misura | D74: Algoritmo di calcolo | E74: Fonte dei dati | F74: Ultimo valore osservato | G74: Risultato atteso anno n | H74: Risultato atteso anno n+1 | I74: Risultato atteso anno n+2 | L74: Tipologia | M74: Unità di misura | N74: Algoritmo di calcolo | O74: Fonte dei dati | P74: Ultimo valore osservato | Q74: Risultato atteso anno n | R74: Risultato atteso anno n+1 | S74: Risultato atteso anno n+2
B76: Se altro, indicare qui | C76: Se altro, indicare qui | E76: Se altro, indicare qui | L76: Se altro, indicare qui | M76: Se altro, indicare qui | O76: Se altro, indicare qui
B78: Indicatore | C78: (titolo) | L78: Indicatore
B79: Cosa misura | L79: Cosa misura
B80: Tipologia | C80: Unità di misura | D80: Algoritmo di calcolo | E80: Fonte dei dati | F80: Ultimo valore osservato | G80: Risultato atteso anno n | H80: Risultato atteso anno n+1 | I80: Risultato atteso anno n+2 | L80: Tipologia | M80: Unità di misura | N80: Algoritmo di calcolo | O80: Fonte dei dati | P80: Ultimo valore osservato | Q80: Risultato atteso anno n | R80: Risultato atteso anno n+1 | S80: Risultato atteso anno n+2
B82: Se altro, indicare qui | C82: Se altro, indicare qui | E82: Se altro, indicare qui | L82: Se altro, indicare qui | M82: Se altro, indicare qui | O82: Se altro, indicare qui
B84: Missione | C84: 032 - Servizi istituzionali e generali delle amministrazioni pubbliche | L84: Missione | M84: 032 - Servizi istituzionali e generali delle amministrazioni pubbliche
B86: Programma | C86: 002 - Indirizzo politico | L86: Programma | M86: 002 - Indirizzo politico
B89: Obiettivo | C89: Titolo | D89: =+Generale!N8 -> 0 | L89: Obiettivo | M89: Titolo | N89: =+Generale!N12 -> 0
C90: Descrizione | M90: Descrizione
C91: Arco temporale realizzazione | M91: Arco temporale realizzazione
C92: Centro di responsabilità | M92: Centro di responsabilità
C93: Risorse finanziarie | M93: Risorse finanziarie
B94: =+Generale!M8 ->  | L94: =+Generale!M12 -> 
C95: Nr indicatori associati | E95: <<< nb: indicare preventivamente il Nr indicatori associati all'obiettivo | M95: Nr indicatori associati | O95: <<< nb: indicare preventivamente il Nr indicatori associati all'obiettivo
B98: Indicatore | C98: (titolo) | L98: Indicatore | M98: (titolo)
B99: Cosa misura | L99: Cosa misura
B100: Tipologia | C100: Unità di misura | D100: Algoritmo di calcolo | E100: Fonte dei dati | F100: Ultimo valore osservato | G100: Risultato atteso anno n | H100: Risultato atteso anno n+1 | I100: Risultato atteso anno n+2 | L100: Tipologia | M100: Unità di misura | N100: Algoritmo di calcolo | O100: Fonte dei dati | P100: Ultimo valore osservato | Q100: Risultato atteso anno n | R100: Risultato atteso anno n+1 | S100: Risultato atteso anno n+2
B102: Se altro, indicare qui | C102: Se altro, indicare qui | E102: Se altro, indicare qui | L102: Se altro, indicare qui | M102: Se altro, indicare qui | O102: Se altro, indicare qui
B104: Indicatore | C104: (titolo) | L104: Indicatore | M104: (titolo)
B105: Cosa misura | L105: Cosa misura
B106: Tipologia | C106: Unità di misura | D106: Algoritmo di calcolo | E106: Fonte dei dati | F106: Ultimo valore osservato | G106: Risultato atteso anno n | H106: Risultato atteso anno n+1 | I106: Risultato atteso anno n+2 | L106: Tipologia | M106: Unità di misura | N106: Algoritmo di calcolo | O106: Fonte dei dati | P106: Ultimo valore osservato | Q106: Risultato atteso anno n | R106: Risultato atteso anno n+1 | S106: Risultato atteso anno n+2
B108: Se altro, indicare qui | C108: Se altro, indicare qui | E108: Se altro, indicare qui | L108: Se altro, indicare qui | M108: Se altro, indicare qui | O108: Se altro, indicare qui
B110: Indicatore | C110: (titolo) | L110: Indicatore | M110: (titolo)
B111: Cosa misura | L111: Cosa misura
B112: Tipologia | C112: Unità di misura | D112: Algoritmo di calcolo | E112: Fonte dei dati | F112: Ultimo valore osservato | G112: Risultato atteso anno n | H112: Risultato atteso anno n+1 | I112: Risultato atteso anno n+2 | L112: Tipologia | M112: Unità di misura | N112: Algoritmo di calcolo | O112: Fonte dei dati | P112: Ultimo valore osservato | Q112: Risultato atteso anno n | R112: Risultato atteso anno n+1 | S112: Risultato atteso anno n+2
B114: Se altro, indicare qui | C114: Se altro, indicare qui | E114: Se altro, indicare qui | L114: Se altro, indicare qui | M114: Se altro, indicare qui | O114: Se altro, indicare qui
B116: Indicatore | C116: (titolo) | L116: Indicatore | M116: (titolo)
B117: Cosa misura | L117: Cosa misura
B118: Tipologia | C118: Unità di misura | D118: Algoritmo di calcolo | E118: Fonte dei dati | F118: Ultimo valore osservato | G118: Risultato atteso anno n | H118: Risultato atteso anno n+1 | I118: Risultato atteso anno n+2 | L118: Tipologia | M118: Unità di misura | N118: Algoritmo di calcolo | O118: Fonte dei dati | P118: Ultimo valore osservato | Q118: Risultato atteso anno n | R118: Risultato atteso anno n+1 | S118: Risultato atteso anno n+2
B120: Se altro, indicare qui | C120: Se altro, indicare qui | E120: Se altro, indicare qui | L120: Se altro, indicare qui | M120: Se altro, indicare qui | O120: Se altro, indicare qui
B122: Indicatore | C122: (titolo) | L122: Indicatore | M122: (titolo)
B123: Cosa misura
B124: Tipologia | C124: Unità di misura | D124: Algoritmo di calcolo | E124: Fonte dei dati | F124: Ultimo valore osservato | G124: Risultato atteso anno n | H124: Risultato atteso anno n+1 | I124: Risultato atteso anno n+2 | L124: Tipologia | M124: Unità di misura | N124: Algoritmo di calcolo | O124: Fonte dei dati | P124: Ultimo valore osservato | Q124: Risultato atteso anno n | R124: Risultato atteso anno n+1 | S124: Risultato atteso anno n+2
B126: Se altro, indicare qui | C126: Se altro, indicare qui | E126: Se altro, indicare qui | L126: Se altro, indicare qui | M126: Se altro, indicare qui | O126: Se altro, indicare qui
B128: Obiettivo | C128: Titolo | D128: =+Generale!N9 -> 0 | L128: Obiettivo | M128: Titolo | N128: =+Generale!N13 -> 0
C129: Descrizione | M129: Descrizione
C130: Arco temporale realizzazione | M130: Arco temporale realizzazione
C131: Centro di responsabilità | M131: Centro di responsabilità
C132: Risorse finanziarie | M132: Risorse finanziarie
B133: =+Generale!M9 ->  | L133: =+Generale!M13 -> 
C134: Nr indicatori associati | E134: <<< nb: indicare preventivamente il Nr indicatori associati all'obiettivo | M134: Nr indicatori associati | O134: <<< nb: indicare preventivamente il Nr indicatori associati all'obiettivo
B137: Indicatore | C137: (titolo) | L137: Indicatore | M137: (titolo)
B138: Cosa misura | L138: Cosa misura
B139: Tipologia | C139: Unità di misura | D139: Algoritmo di calcolo | E139: Fonte dei dati | F139: Ultimo valore osservato | G139: Risultato atteso anno n | H139: Risultato atteso anno n+1 | I139: Risultato atteso anno n+2 | L139: Tipologia | M139: Unità di misura | N139: Algoritmo di calcolo | O139: Fonte dei dati | P139: Ultimo valore osservato | Q139: Risultato atteso anno n | R139: Risultato atteso anno n+1 | S139: Risultato atteso anno n+2
B141: Se altro, indicare qui | C141: Se altro, indicare qui | E141: Se altro, indicare qui | L141: Se altro, indicare qui | M141: Se altro, indicare qui | O141: Se altro, indicare qui
B143: Indicatore | C143: (titolo) | L143: Indicatore | M143: (titolo)
B144: Cosa misura | L144: Cosa misura
B145: Tipologia | C145: Unità di misura | D145: Algoritmo di calcolo | E145: Fonte dei dati | F145: Ultimo valore osservato | G145: Risultato atteso anno n | H145: Risultato atteso anno n+1 | I145: Risultato atteso anno n+2 | L145: Tipologia | M145: Unità di misura | N145: Algoritmo di calcolo | O145: Fonte dei dati | P145: Ultimo valore osservato | Q145: Risultato atteso anno n | R145: Risultato atteso anno n+1 | S145: Risultato atteso anno n+2
B147: Se altro, indicare qui | C147: Se altro, indicare qui | E147: Se altro, indicare qui | L147: Se altro, indicare qui | M147: Se altro, indicare qui | O147: Se altro, indicare qui
B149: Indicatore | C149: (titolo) | L149: Indicatore | M149: (titolo)
B150: Cosa misura | L150: Cosa misura
B151: Tipologia | C151: Unità di misura | D151: Algoritmo di calcolo | E151: Fonte dei dati | F151: Ultimo valore osservato | G151: Risultato atteso anno n | H151: Risultato atteso anno n+1 | I151: Risultato atteso anno n+2 | L151: Tipologia | M151: Unità di misura | N151: Algoritmo di calcolo | O151: Fonte dei dati | P151: Ultimo valore osservato | Q151: Risultato atteso anno n | R151: Risultato atteso anno n+1 | S151: Risultato atteso anno n+2
O152: Movimprese
B153: Se altro, indicare qui | C153: Se altro, indicare qui | E153: Se altro, indicare qui | L153: Se altro, indicare qui | M153: Se altro, indicare qui | O153: Se altro, indicare qui
B155: Indicatore | C155: (titolo) | L155: Indicatore | M155: (titolo)
B156: Cosa misura | L156: Cosa misura
B157: Tipologia | C157: Unità di misura | D157: Algoritmo di calcolo | E157: Fonte dei dati | F157: Ultimo valore osservato | G157: Risultato atteso anno n | H157: Risultato atteso anno n+1 | I157: Risultato atteso anno n+2 | L157: Tipologia | M157: Unità di misura | N157: Algoritmo di calcolo | O157: Fonte dei dati | P157: Ultimo valore osservato | Q157: Risultato atteso anno n | R157: Risultato atteso anno n+1 | S157: Risultato atteso anno n+2
B159: Se altro, indicare qui | C159: Se altro, indicare qui | E159: Se altro, indicare qui | L159: Se altro, indicare qui | M159: Se altro, indicare qui | O159: Se altro, indicare qui
B161: Indicatore | C161: (titolo) | L161: Indicatore | M161: (titolo)
B162: Cosa misura | L162: Cosa misura
B163: Tipologia | C163: Unità di misura | D163: Algoritmo di calcolo | E163: Fonte dei dati | F163: Ultimo valore osservato | G163: Risultato atteso anno n | H163: Risultato atteso anno n+1 | I163: Risultato atteso anno n+2 | L163: Tipologia | M163: Unità di misura | N163: Algoritmo di calcolo | O163: Fonte dei dati | P163: Ultimo valore osservato | Q163: Risultato atteso anno n | R163: Risultato atteso anno n+1 | S163: Risultato atteso anno n+2
B165: Se altro, indicare qui | C165: Se altro, indicare qui | E165: Se altro, indicare qui | L165: Se altro, indicare qui | M165: Se altro, indicare qui | O165: Se altro, indicare qui

Sheet 004_Servizi generali
B1: Missione | C1: 032 - Servizi istituzionali e generali delle amministrazioni pubbliche | L1: Missione | M1: 032 - Servizi istituzionali e generali delle amministrazioni pubbliche
B3: Programma | C3: 003 - Servizi e affari generali per le amministrazioni di competenza | L3: Programma | M3: 004 - Servizi generali, formativi ed approvvigionamenti per le Amministrazioni pubbliche
B6: Obiettivo | C6: Titolo | D6: =+Generale!P6 -> Incrementare il numero di attività a supporto degli obiettivi ed attività comuni/associate del sistema delle Camere venete | L6: Obiettivo | M6: Titolo | N6: =+Generale!P10 -> 0
C7: Descrizione | D7: Insieme di azioni svolte dall'Ente a favore di priorità e necessità comuni delle Camere | M7: Descrizione
C8: Arco temporale realizzazione | D8: Triennio | M8: Arco temporale realizzazione
C9: Centro di responsabilità | D9: Area Impresa e Territorio - Area Amministrazione interna e servzii alle CCIAA | M9: Centro di responsabilità
C10: Risorse economiche | D10: Triennio: 1.300.000 | M10: Risorse finanziarie
B11: =+Generale!O6 -> 032-003-001 | L11: =+Generale!O10 -> 
C12: Nr indicatori associati | D12: 4 | E12: <<< nb: indicare preventivamente il Nr indicatori associati all'obiettivo | M12: Nr indicatori associati | O12: <<< nb: indicare preventivamente il Nr indicatori associati all'obiettivo
B15: Indicatore | C15: Volume medio di attività formativa per il personale camerale | L15: Indicatore | M15: (titolo)
B16: Cosa misura | C16: Misura l'impegno dell'Unione regionale per acquisire/sviluppare conoscenze/competenze e capacità connesse all'attività lavorativa del personale camerale | L16: Cosa misura
B17: Tipologia | C17: Unità di misura | D17: Algoritmo di calcolo | E17: Fonte dei dati | F17: Ultimo valore osservato - cons. 2021 | G17: Risultato atteso anno 2023 | H17: Risultato atteso anno 2024 | I17: Risultato atteso anno 2025 | L17: Tipologia | M17: Unità di misura | N17: Algoritmo di calcolo | O17: Fonte dei dati | P17: Ultimo valore osservato | Q17: Risultato atteso anno n | R17: Risultato atteso anno n+1 | S17: Risultato atteso anno n+2
B18: di realizzazione fisica | C18: Valore assoluto | D18: numero incontri rivolti a personale camerale | E18: Altro (specificare sotto) | F18: 5 | G18: 7 | H18: 7 | I18: 7
B19: Se altro, indicare qui | C19: Se altro, indicare qui | E19: Relazione attività | L19: Se altro, indicare qui | M19: Se altro, indicare qui | O19: Se altro, indicare qui
B21: Indicatore | C21: Incidenza personale di supporto alle CCIAA | L21: Indicatore
B22: Cosa misura | C22: Misura l'impegno dell'Unione regionale per supportare le Camere di commercio della propria regione | L22: Cosa misura
B23: Tipologia | C23: Unità di misura | D23: Algoritmo di calcolo | E23: Fonte dei dati | F23: Ultimo valore osservato - cons. 2021 | G23: Risultato atteso anno 2023 | H23: Risultato atteso anno 2024 | I23: Risultato atteso anno 2025 | L23: Tipologia | M23: Unità di misura | N23: Algoritmo di calcolo | O23: Fonte dei dati | P23: Ultimo valore osservato | Q23: Risultato atteso anno n | R23: Risultato atteso anno n+1 | S23: Risultato atteso anno n+2
B24: altre tipologie (specificare sotto) | C24: Percentuale | D24: Personale (espresso in FTE) impiegato in servizi di supporto alle Camere (escluso studi e ricerche, regolazione del mercato e vigilanza, internazionalizzazione) nell'anno "n"/Personale (espresso in FTE) impiegato nell'anno "n" | E24: Altro (specificare sotto) | F24: =15/28 -> 0.5357142857 | G24: 0.56 | H24: 0.56 | I24: 0.56
B25: Qualità | E25: rilevazione interna UR | L25: Se altro, indicare qui | M25: Se altro, indicare qui | O25: Se altro, indicare qui
B27: Indicatore | C27: Incremento del numero di attività ed iniziative dell'Ente realizzate a favore del sistema camerale regionale | L27: Indicatore | M27: (titolo)
B28: Cosa misura | C28: La capacità dell'Ente di mettere in atto azioni che consentano l'ottimizzazione ed un effetto moltiplicatore su attività svolte individualmente dalle Camere provinciali | L28: Cosa misura
B29: Tipologia | C29: Unità di misura | D29: Algoritmo di calcolo | E29: Fonte dei dati | F29: Ultimo valore osservato | G29: Risultato atteso anno n | H29: Risultato atteso anno n+1 | I29: Risultato atteso anno n+2 | L29: Tipologia | M29: Unità di misura | N29: Algoritmo di calcolo | O29: Fonte dei dati | P29: Ultimo valore osservato | Q29: Risultato atteso anno n | R29: Risultato atteso anno n+1 | S29: Risultato atteso anno n+2
B30: di risultato (otuput) | C30: Valore percentuale
B31: Se altro, indicare qui | C31: Se altro, indicare qui | E31: rilevazione interna UR | L31: Se altro, indicare qui | M31: Se altro, indicare qui | O31: Se altro, indicare qui
B33: Indicatore | L33: Indicatore | M33: (titolo)
B34: Cosa misura | L34: Cosa misura
B35: Tipologia | C35: Unità di misura | D35: Algoritmo di calcolo | E35: Fonte dei dati | F35: Ultimo valore osservato | G35: Risultato atteso anno n | H35: Risultato atteso anno n+1 | I35: Risultato atteso anno n+2 | L35: Tipologia | M35: Unità di misura | N35: Algoritmo di calcolo | O35: Fonte dei dati | P35: Ultimo valore osservato | Q35: Risultato atteso anno n | R35: Risultato atteso anno n+1 | S35: Risultato atteso anno n+2
B36: di realizzazione finanziaria | C36: Percentuale | E36: Altro (specificare sotto)
B37: Se altro, indicare qui | C37: Se altro, indicare qui | E37: Bilancio consuntivo | L37: Se altro, indicare qui | M37: Se altro, indicare qui | O37: Se altro, indicare qui
B39: Indicatore | L39: Indicatore | M39: (titolo)
B40: Cosa misura | L40: Cosa misura
B41: Tipologia | C41: Unità di misura | D41: Algoritmo di calcolo | E41: Fonte dei dati | F41: Ultimo valore osservato | G41: Risultato atteso anno n | H41: Risultato atteso anno n+1 | I41: Risultato atteso anno n+2 | L41: Tipologia | M41: Unità di misura | N41: Algoritmo di calcolo | O41: Fonte dei dati | P41: Ultimo valore osservato | Q41: Risultato atteso anno n | R41: Risultato atteso anno n+1 | S41: Risultato atteso anno n+2
B42: di realizzazione finanziaria | C42: Valore assoluto | E42: Altro (specificare sotto)
B43: Se altro, indicare qui | E43: Bilancio consuntivo | L43: Se altro, indicare qui | M43: Se altro, indicare qui | O43: Se altro, indicare qui
B45: Obiettivo | C45: Titolo | D45: =Generale!P7 -> Ridurre il costo dei servizi generali (servizi di supporto, segreteria e centrali ) rispetto al totale dei costi, intervenendo sui processi e con investimenti in soluzioni informatiche e upgrading delle competenze (formazione). | L45: Obiettivo | M45: Titolo | N45: =+Generale!P11 -> 0
C46: Descrizione | D46: Tramite il miglioramento dell'efficienza interna, l'Ente mette in opera azioni di razionalizzazione dei processi ed investimenti informatici | M46: Descrizione
C47: Arco temporale per la realizzazione | D47: Triennio | M47: Arco temporale per la realizzazione
C48: Centro di responsabilità | D48: Direzione | M48: Centro di responsabilità
C49: Risorse finanziarie | D49: Triennio: 45.000 | M49: Risorse finanziarie
B50: =+Generale!O7 -> 032-003-002 | L50: =+Generale!O11 -> 
C51: Nr indicatori associati | D51: 3 | E51: <<< nb: indicare preventivamente il Nr indicatori associati all'obiettivo | M51: Nr indicatori associati | O51: <<< nb: indicare preventivamente il Nr indicatori associati all'obiettivo
B54: Indicatore | C54: Costo dei servizi generali | L54: Indicatore | M54: (titolo)
B55: Cosa misura | C55: La capacità dell'Ente di tenere sotto controllo il costo dei servizi generali sul totale dei costi dell'Ente | L55: Cosa misura
B56: Tipologia | C56: Unità di misura | D56: Algoritmo di calcolo | E56: Fonte dei dati | F56: Ultimo valore osservato - cons. 2021 | G56: Risultato atteso anno 2023 | H56: Risultato atteso anno 2024 | I56: Risultato atteso anno 2025 | L56: Tipologia | M56: Unità di misura | N56: Algoritmo di calcolo | O56: Fonte dei dati | P56: Ultimo valore osservato | Q56: Risultato atteso anno n | R56: Risultato atteso anno n+1 | S56: Risultato atteso anno n+2
B57: altre tipologie (specificare sotto) | C57: Percentuale | D57: Costi per servizi istituzionali e generali/Costi totali | F57: =525108/34308819 -> 0.01530533593 | G57: =712022/6782832 -> 0.1049741465 | H57: =632022/4372420 -> 0.1445474131 | I57: =632022/4312420 -> 0.1465585449
B58: Economico Patrimoniale | C58: Se altro, indicare qui | E58: Bilancio consuntivo e preventivo economico | L58: Se altro, indicare qui | M58: Se altro, indicare qui | O58: Se altro, indicare qui
B60: Indicatore | C60: Incidenza costi strutturali | L60: Indicatore | M60: (titolo)
B61: Cosa misura | C61: La capacità dell'Unione regionale di destinare risorse per interventi a favore delle Camere | L61: Cosa misura
B62: Tipologia | C62: Unità di misura | D62: Algoritmo di calcolo | E62: Fonte dei dati | F62: Ultimo valore osservato - cons. 2021 | G62: Risultato atteso anno 2023 | H62: Risultato atteso anno 2024 | I62: Risultato atteso anno 2025 | L62: Tipologia | M62: Unità di misura | N62: Algoritmo di calcolo | O62: Fonte dei dati | P62: Ultimo valore osservato | Q62: Risultato atteso anno n | R62: Risultato atteso anno n+1 | S62: Risultato atteso anno n+2
B63: altre tipologie (specificare sotto) | C63: Percentuale | D63: Oneri di struttura/Totale Oneri Gestione Corrente | F63: ='[1]Preventivo 2023-2025'!$G$42/'[1]Preventivo 2023-2025'!$G$65 -> 0.05675566973 | G63: ='[1]Preventivo 2023-2025'!$J$42/'[1]Preventivo 2023-2025'!$J$65 -> 0.3230800777 | H63: ='[1]Preventivo 2023-2025'!$K$42/'[1]Preventivo 2023-2025'!$K$65 -> 0.4995855954 | I63: ='[1]Preventivo 2023-2025'!$L$42/'[1]Preventivo 2023-2025'!$L$65 -> 0.5083915855
B64: Economico patrimoniale | C64: Se altro, indicare qui | E64: Bilancio consuntivo e preventivo economico | L64: Se altro, indicare qui | M64: Se altro, indicare qui | O64: Se altro, indicare qui
B66: Indicatore | C66: Ore di formazione interna | L66: Indicatore | M66: (titolo)
B67: Cosa misura | C67: Il volume delle attività di formazione per il miglioramento delle competenze gestionali del personale | L67: Cosa misura
B68: Tipologia | C68: Unità di misura | D68: Algoritmo di calcolo | E68: Fonte dei dati | F68: Ultimo valore osservato - cons. 2021 | G68: Risultato atteso anno 2023 | H68: Risultato atteso anno 2024 | I68: Risultato atteso anno 2025 | L68: Tipologia | M68: Unità di misura | N68: Algoritmo di calcolo | O68: Fonte dei dati | P68: Ultimo valore osservato | Q68: Risultato atteso anno n | R68: Risultato atteso anno n+1 | S68: Risultato atteso anno n+2
B69: realizzazione fisica | C69: Valore assoluto | D69: totale ore di formazione | F69: 50 | G69: 100 | H69: 100 | I69: 100
C70: Se altro, indicare qui | E70: rilevazione interna UR | L70: Se altro, indicare qui | M70: Se altro, indicare qui | O70: Se altro, indicare qui
B72: Indicatore | C72: (titolo) | L72: Indicatore
B73: Cosa misura | L73: Cosa misura
B74: Tipologia | C74: Unità di misura | D74: Algoritmo di calcolo | E74: Fonte dei dati | F74: Ultimo valore osservato | G74: Risultato atteso anno n | H74: Risultato atteso anno n+1 | I74: Risultato atteso anno n+2 | L74: Tipologia | M74: Unità di misura | N74: Algoritmo di calcolo | O74: Fonte dei dati | P74: Ultimo valore osservato | Q74: Risultato atteso anno n | R74: Risultato atteso anno n+1 | S74: Risultato atteso anno n+2
B76: Se altro, indicare qui | C76: Se altro, indicare qui | E76: Se altro, indicare qui | L76: Se altro, indicare qui | M76: Se altro, indicare qui | O76: Se altro, indicare qui
B78: Indicatore | C78: (titolo) | L78: Indicatore
B79: Cosa misura | L79: Cosa misura
B80: Tipologia | C80: Unità di misura | D80: Algoritmo di calcolo | E80: Fonte dei dati | F80: Ultimo valore osservato | G80: Risultato atteso anno n | H80: Risultato atteso anno n+1 | I80: Risultato atteso anno n+2 | L80: Tipologia | M80: Unità di misura | N80: Algoritmo di calcolo | O80: Fonte dei dati | P80: Ultimo valore osservato | Q80: Risultato atteso anno n | R80: Risultato atteso anno n+1 | S80: Risultato atteso anno n+2
B82: Se altro, indicare qui | C82: Se altro, indicare qui | E82: Se altro, indicare qui | L82: Se altro, indicare qui | M82: Se altro, indicare qui | O82: Se altro, indicare qui
B84: Missione | C84: 032 - Servizi istituzionali e generali delle amministrazioni pubbliche | L84: Missione | M84: 032 - Servizi istituzionali e generali delle amministrazioni pubbliche
B86: Programma | C86: 003 - Servizi e affari generali per le amministrazioni di competenza | L86: Programma | M86: 004 - Servizi generali, formativi ed approvvigionamenti per le Amministrazioni pubbliche
B89: Obiettivo | C89: Titolo | D89: =+Generale!P8 -> Migliorare l'efficenza complessiva e la capacità di erogare servizi che rispondono ad una domanda effettiva nel mercato regionale, europeo e nazionale | L89: Obiettivo | M89: Titolo | N89: =+Generale!P12 -> 0
C90: Descrizione | D90: Capacità dell'Ente di reperire risorse da servizi commerciali ed istituzionali ed essere efficiente nel rapporto con le controparti | M90: Descrizione
C91: Arco temporale realizzazione | D91: Triennio | M91: Arco temporale realizzazione
C92: Centro di responsabilità | D92: Direzione | M92: Centro di responsabilità
C93: Risorse finanziarie | D93: Triennio: 60.000 | M93: Risorse finanziarie
B94: =+Generale!O8 -> 032-003-003 | L94: =+Generale!O12 -> 
C95: Nr indicatori associati | D95: 3 | E95: <<< nb: indicare preventivamente il Nr indicatori associati all'obiettivo | M95: Nr indicatori associati | O95: <<< nb: indicare preventivamente il Nr indicatori associati all'obiettivo
B98: Indicatore | C98: Incidenza delle entrate per servizi | L98: Indicatore | M98: (titolo)
B99: Cosa misura | C99: Misura la capacità dell'Unione regionale di reperire risorse dal mercato | L99: Cosa misura
B100: Tipologia | C100: Unità di misura | D100: Algoritmo di calcolo | E100: Fonte dei dati | F100: Ultimo valore osservato - cons. 2021 | G100: Risultato atteso anno 2023 | H100: Risultato atteso anno 2024 | I100: Risultato atteso anno 2025 | L100: Tipologia | M100: Unità di misura | N100: Algoritmo di calcolo | O100: Fonte dei dati | P100: Ultimo valore osservato | Q100: Risultato atteso anno n | R100: Risultato atteso anno n+1 | S100: Risultato atteso anno n+2
B101: di realizzazione finanziaria | C101: Percentuale | D101: Proventi da gestione di servizi commerciali/Totale Proventi gestione corrente | E101: Altro (specificare sotto) | F101: =50864/[2]SCHECEE!$H$186 -> 0.001482827131 | G101: =('[1]Preventivo 2023-2025'!$J$20+'[1]Preventivo 2023-2025'!$J$22)/'[1]Preventivo 2023-2025'!$J$24 -> 0.007504355234 | H101: =('[1]Preventivo 2023-2025'!$K$20+'[1]Preventivo 2023-2025'!$K$22)/'[1]Preventivo 2023-2025'!$K$24 -> 0.01033059221 | I101: =('[1]Preventivo 2023-2025'!$L$20+'[1]Preventivo 2023-2025'!$L$22)/'[1]Preventivo 2023-2025'!$L$24 -> 0.01063469828
B102: economico patrimoniale | C102: Se altro, indicare qui | E102: Bilancio consuntivo e preventivo economico | L102: Se altro, indicare qui | M102: Se altro, indicare qui | O102: Se altro, indicare qui
B104: Indicatore | C104: Capacita di autofinanziamento | L104: Indicatore | M104: (titolo)
B105: Cosa misura | C105: Misura la capacità dell'Unione regionale di coprire i propri costi di gestione senza il supporto camerale | L105: Cosa misura
B106: Tipologia | C106: Unità di misura | D106: Algoritmo di calcolo | E106: Fonte dei dati | F106: Ultimo valore osservato - cons. 2021 | G106: Risultato atteso anno 2023 | H106: Risultato atteso anno 2024 | I106: Risultato atteso anno 2025 | L106: Tipologia | M106: Unità di misura | N106: Algoritmo di calcolo | O106: Fonte dei dati | P106: Ultimo valore osservato | Q106: Risultato atteso anno n | R106: Risultato atteso anno n+1 | S106: Risultato atteso anno n+2
B107: altre tipologie (specificare sotto) | C107: Percentuale | D107: (Totale Proventi gestione corrente - Risorse da CCIAA)/Totale Oneri Gestione Corrente) | E107: Altro (specificare sotto) | F107: =('[1]Preventivo 2023-2025'!$G$24-'[1]Preventivo 2023-2025'!$G$14-'[1]Preventivo 2023-2025'!$G$15)/'[1]Preventivo 2023-2025'!$G$65 -> 0.9505317277 | G107: =('[1]Preventivo 2023-2025'!$J$24-1360443-500000)/'[1]Preventivo 2023-2025'!$J$65 -> 0.7081982012 | H107: =('[1]Preventivo 2023-2025'!$K$24-1360443-50000)/'[1]Preventivo 2023-2025'!$K$65 -> 0.6445018876 | I107: =('[1]Preventivo 2023-2025'!$L$24-1360443-500000)/'[1]Preventivo 2023-2025'!$L$65 -> 0.5210802613
B108: economico patrimoniale | C108: Se altro, indicare qui | E108: Bilancio consuntivo e preventivo economico | L108: Se altro, indicare qui | M108: Se altro, indicare qui | O108: Se altro, indicare qui
B110: Indicatore | C110: Tempo medio di pagamento delle fatture passive | L110: Indicatore | M110: (titolo)
B111: Cosa misura | C111: Il tempo medio necessario all'unione regionale per pagare le fatture passive ove il fornitore sia in regola con la documentazione accompagnatoria da produrre | L111: Cosa misura
B112: Tipologia | C112: Unità di misura | D112: Algoritmo di calcolo | E112: Fonte dei dati | F112: Ultimo valore osservato - cons. 2021 | G112: Risultato atteso anno 2023 | H112: Risultato atteso anno 2024 | I112: Risultato atteso anno 2025 | L112: Tipologia | M112: Unità di misura | N112: Algoritmo di calcolo | O112: Fonte dei dati | P112: Ultimo valore osservato | Q112: Risultato atteso anno n | R112: Risultato atteso anno n+1 | S112: Risultato atteso anno n+2
B113: altre tipologie (specificare sotto) | C113: Valore assoluto | D113: Sommatoria giorni che intercorrono tra la data del ricevimento e la data del mandato di pagamento delle fatture passive pagate nell’anno "n"/N° di fatture passive pagate nell'anno "n" | E113: Altro (specificare sotto) | F113: 23 | G113: 25 | H113: 25 | I113: 25
B114: Qualità | C114: Se altro, indicare qui | E114: Sistema di contabilità interna | L114: Se altro, indicare qui | M114: Se altro, indicare qui | O114: Se altro, indicare qui
B116: Indicatore | C116: (titolo) | L116: Indicatore | M116: (titolo)
B117: Cosa misura | L117: Cosa misura
B118: Tipologia | C118: Unità di misura | D118: Algoritmo di calcolo | E118: Fonte dei dati | F118: Ultimo valore osservato | G118: Risultato atteso anno n | H118: Risultato atteso anno n+1 | I118: Risultato atteso anno n+2 | L118: Tipologia | M118: Unità di misura | N118: Algoritmo di calcolo | O118: Fonte dei dati | P118: Ultimo valore osservato | Q118: Risultato atteso anno n | R118: Risultato atteso anno n+1 | S118: Risultato atteso anno n+2
B120: Se altro, indicare qui | C120: Se altro, indicare qui | E120: Se altro, indicare qui | L120: Se altro, indicare qui | M120: Se altro, indicare qui | O120: Se altro, indicare qui
B122: Indicatore | C122: (titolo) | L122: Indicatore | M122: (titolo)
B123: Cosa misura
B124: Tipologia | C124: Unità di misura | D124: Algoritmo di calcolo | E124: Fonte dei dati | F124: Ultimo valore osservato | G124: Risultato atteso anno n | H124: Risultato atteso anno n+1 | I124: Risultato atteso anno n+2 | L124: Tipologia | M124: Unità di misura | N124: Algoritmo di calcolo | O124: Fonte dei dati | P124: Ultimo valore osservato | Q124: Risultato atteso anno n | R124: Risultato atteso anno n+1 | S124: Risultato atteso anno n+2
B126: Se altro, indicare qui | C126: Se altro, indicare qui | E126: Se altro, indicare qui | L126: Se altro, indicare qui | M126: Se altro, indicare qui | O126: Se altro, indicare qui
B128: Obiettivo | C128: Titolo | D128: =+Generale!P9 -> 0 | L128: Obiettivo | M128: Titolo | N128: =+Generale!P13 -> 0
C129: Descrizione | M129: Descrizione
C130: Arco temporale realizzazione | M130: Arco temporale realizzazione
C131: Centro di responsabilità | M131: Centro di responsabilità
C132: Risorse finanziarie | M132: Risorse finanziarie
B133: =+Generale!O9 ->  | L133: =+Generale!O13 -> 
C134: Nr indicatori associati | E134: <<< nb: indicare preventivamente il Nr indicatori associati all'obiettivo | M134: Nr indicatori associati | O134: <<< nb: indicare preventivamente il Nr indicatori associati all'obiettivo
B137: Indicatore | C137: (titolo) | L137: Indicatore | M137: (titolo)
B138: Cosa misura | L138: Cosa misura
B139: Tipologia | C139: Unità di misura | D139: Algoritmo di calcolo | E139: Fonte dei dati | F139: Ultimo valore osservato | G139: Risultato atteso anno n | H139: Risultato atteso anno n+1 | I139: Risultato atteso anno n+2 | L139: Tipologia | M139: Unità di misura | N139: Algoritmo di calcolo | O139: Fonte dei dati | P139: Ultimo valore osservato | Q139: Risultato atteso anno n | R139: Risultato atteso anno n+1 | S139: Risultato atteso anno n+2
B141: Se altro, indicare qui | C141: Se altro, indicare qui | E141: Se altro, indicare qui | L141: Se altro, indicare qui | M141: Se altro, indicare qui | O141: Se altro, indicare qui
B143: Indicatore | C143: (titolo) | L143: Indicatore | M143: (titolo)
B144: Cosa misura | L144: Cosa misura
B145: Tipologia | C145: Unità di misura | D145: Algoritmo di calcolo | E145: Fonte dei dati | F145: Ultimo valore osservato | G145: Risultato atteso anno n | H145: Risultato atteso anno n+1 | I145: Risultato atteso anno n+2 | L145: Tipologia | M145: Unità di misura | N145: Algoritmo di calcolo | O145: Fonte dei dati | P145: Ultimo valore osservato | Q145: Risultato atteso anno n | R145: Risultato atteso anno n+1 | S145: Risultato atteso anno n+2
B147: Se altro, indicare qui | C147: Se altro, indicare qui | E147: Se altro, indicare qui | L147: Se altro, indicare qui | M147: Se altro, indicare qui | O147: Se altro, indicare qui
B149: Indicatore | C149: (titolo) | L149: Indicatore | M149: (titolo)
B150: Cosa misura | L150: Cosa misura
B151: Tipologia | C151: Unità di misura | D151: Algoritmo di calcolo | E151: Fonte dei dati | F151: Ultimo valore osservato | G151: Risultato atteso anno n | H151: Risultato atteso anno n+1 | I151: Risultato atteso anno n+2 | L151: Tipologia | M151: Unità di misura | N151: Algoritmo di calcolo | O151: Fonte dei dati | P151: Ultimo valore osservato | Q151: Risultato atteso anno n | R151: Risultato atteso anno n+1 | S151: Risultato atteso anno n+2
B153: Se altro, indicare qui | C153: Se altro, indicare qui | E153: Se altro, indicare qui | L153: Se altro, indicare qui | M153: Se altro, indicare qui | O153: Se altro, indicare qui
B155: Indicatore | C155: (titolo) | L155: Indicatore | M155: (titolo)
B156: Cosa misura | L156: Cosa misura
B157: Tipologia | C157: Unità di misura | D157: Algoritmo di calcolo | E157: Fonte dei dati | F157: Ultimo valore osservato | G157: Risultato atteso anno n | H157: Risultato atteso anno n+1 | I157: Risultato atteso anno n+2 | L157: Tipologia | M157: Unità di misura | N157: Algoritmo di calcolo | O157: Fonte dei dati | P157: Ultimo valore osservato | Q157: Risultato atteso anno n | R157: Risultato atteso anno n+1 | S157: Risultato atteso anno n+2
B159: Se altro, indicare qui | C159: Se altro, indicare qui | E159: Se altro, indicare qui | L159: Se altro, indicare qui | M159: Se altro, indicare qui | O159: Se altro, indicare qui
B161: Indicatore | C161: (titolo) | L161: Indicatore | M161: (titolo)
B162: Cosa misura | L162: Cosa misura
B163: Tipologia | C163: Unità di misura | D163: Algoritmo di calcolo | E163: Fonte dei dati | F163: Ultimo valore osservato | G163: Risultato atteso anno n | H163: Risultato atteso anno n+1 | I163: Risultato atteso anno n+2 | L163: Tipologia | M163: Unità di misura | N163: Algoritmo di calcolo | O163: Fonte dei dati | P163: Ultimo valore osservato | Q163: Risultato atteso anno n | R163: Risultato atteso anno n+1 | S163: Risultato atteso anno n+2
B165: Se altro, indicare qui | C165: Se altro, indicare qui | E165: Se altro, indicare qui | L165: Se altro, indicare qui | M165: Se altro, indicare qui | O165: Se altro, indicare qui

Sheet 001_Fondi da assegnare
B1: Missione | C1: 033 - Fondi da ripartire | L1: Missione | M1: 033 - Fondi da ripartire
B3: Programma | C3: 001 - Fondi da assegnare | L3: Programma | M3: 001 - Fondi da assegnare
B6: Obiettivo | C6: Titolo | D6: =+Generale!S6 -> 0 | L6: Obiettivo | M6: Titolo | N6: =+Generale!S10 -> 0
C7: Descrizione | M7: Descrizione
C8: Arco temporale realizzazione | M8: Arco temporale realizzazione
C9: Centro di responsabilità | M9: Centro di responsabilità
C10: Risorse economiche | M10: Risorse finanziarie
B11: =+Generale!R6 ->  | L11: =+Generale!R10 -> 
C12: Nr indicatori associati | D12: 1 | E12: <<< nb: indicare preventivamente il Nr indicatori associati all'obiettivo | M12: Nr indicatori associati | O12: <<< nb: indicare preventivamente il Nr indicatori associati all'obiettivo
B15: Indicatore | C15: (titolo) | L15: Indicatore | M15: (titolo)
B16: Cosa misura | L16: Cosa misura
B17: Tipologia | C17: Unità di misura | D17: Algoritmo di calcolo | E17: Fonte dei dati | F17: Ultimo valore osservato | G17: Risultato atteso anno n | H17: Risultato atteso anno n+1 | I17: Risultato atteso anno n+2 | L17: Tipologia | M17: Unità di misura | N17: Algoritmo di calcolo | O17: Fonte dei dati | P17: Ultimo valore osservato | Q17: Risultato atteso anno n | R17: Risultato atteso anno n+1 | S17: Risultato atteso anno n+2
B19: Se altro, indicare qui | C19: Se altro, indicare qui | E19: Se altro, indicare qui | L19: Se altro, indicare qui | M19: Se altro, indicare qui | O19: Se altro, indicare qui
B21: Indicatore | C21: (titolo) | L21: Indicatore
B22: Cosa misura | L22: Cosa misura
B23: Tipologia | C23: Unità di misura | D23: Algoritmo di calcolo | E23: Fonte dei dati | F23: Ultimo valore osservato | G23: Risultato atteso anno n | H23: Risultato atteso anno n+1 | I23: Risultato atteso anno n+2 | L23: Tipologia | M23: Unità di misura | N23: Algoritmo di calcolo | O23: Fonte dei dati | P23: Ultimo valore osservato | Q23: Risultato atteso anno n | R23: Risultato atteso anno n+1 | S23: Risultato atteso anno n+2
B25: Se altro, indicare qui | C25: Se altro, indicare qui | E25: Se altro, indicare qui | L25: Se altro, indicare qui | M25: Se altro, indicare qui | O25: Se altro, indicare qui
B27: Indicatore | C27: (titolo) | L27: Indicatore | M27: (titolo)
B28: Cosa misura | L28: Cosa misura
B29: Tipologia | C29: Unità di misura | D29: Algoritmo di calcolo | E29: Fonte dei dati | F29: Ultimo valore osservato | G29: Risultato atteso anno n | H29: Risultato atteso anno n+1 | I29: Risultato atteso anno n+2 | L29: Tipologia | M29: Unità di misura | N29: Algoritmo di calcolo | O29: Fonte dei dati | P29: Ultimo valore osservato | Q29: Risultato atteso anno n | R29: Risultato atteso anno n+1 | S29: Risultato atteso anno n+2
B31: Se altro, indicare qui | C31: Se altro, indicare qui | E31: Se altro, indicare qui | L31: Se altro, indicare qui | M31: Se altro, indicare qui | O31: Se altro, indicare qui
B33: Indicatore | C33: (titolo) | L33: Indicatore | M33: (titolo)
B34: Cosa misura | L34: Cosa misura
B35: Tipologia | C35: Unità di misura | D35: Algoritmo di calcolo | E35: Fonte dei dati | F35: Ultimo valore osservato | G35: Risultato atteso anno n | H35: Risultato atteso anno n+1 | I35: Risultato atteso anno n+2 | L35: Tipologia | M35: Unità di misura | N35: Algoritmo di calcolo | O35: Fonte dei dati | P35: Ultimo valore osservato | Q35: Risultato atteso anno n | R35: Risultato atteso anno n+1 | S35: Risultato atteso anno n+2
B37: Se altro, indicare qui | C37: Se altro, indicare qui | E37: Se altro, indicare qui | L37: Se altro, indicare qui | M37: Se altro, indicare qui | O37: Se altro, indicare qui
B39: Indicatore | C39: (titolo) | L39: Indicatore | M39: (titolo)
B40: Cosa misura | L40: Cosa misura
B41: Tipologia | C41: Unità di misura | D41: Algoritmo di calcolo | E41: Fonte dei dati | F41: Ultimo valore osservato | G41: Risultato atteso anno n | H41: Risultato atteso anno n+1 | I41: Risultato atteso anno n+2 | L41: Tipologia | M41: Unità di misura | N41: Algoritmo di calcolo | O41: Fonte dei dati | P41: Ultimo valore osservato | Q41: Risultato atteso anno n | R41: Risultato atteso anno n+1 | S41: Risultato atteso anno n+2
B43: Se altro, indicare qui | C43: Se altro, indicare qui | E43: Se altro, indicare qui | L43: Se altro, indicare qui | M43: Se altro, indicare qui | O43: Se altro, indicare qui
B45: Obiettivo | C45: Titolo | D45: =+Generale!S7 -> 0 | L45: Obiettivo | M45: Titolo | N45: =+Generale!S11 -> 0
C46: Descrizione | M46: Descrizione
C47: Arco temporale per la realizzazione | M47: Arco temporale per la realizzazione
C48: Centro di responsabilità | M48: Centro di responsabilità
C49: Risorse finanziarie | M49: Risorse finanziarie
B50: =+Generale!R7 ->  | L50: =+Generale!R11 -> 
C51: Nr indicatori associati | E51: <<< nb: indicare preventivamente il Nr indicatori associati all'obiettivo | M51: Nr indicatori associati | O51: <<< nb: indicare preventivamente il Nr indicatori associati all'obiettivo
B54: Indicatore | C54: (titolo) | L54: Indicatore | M54: (titolo)
B55: Cosa misura | L55: Cosa misura
B56: Tipologia | C56: Unità di misura | D56: Algoritmo di calcolo | E56: Fonte dei dati | F56: Ultimo valore osservato | G56: Risultato atteso anno n | H56: Risultato atteso anno n+1 | I56: Risultato atteso anno n+2 | L56: Tipologia | M56: Unità di misura | N56: Algoritmo di calcolo | O56: Fonte dei dati | P56: Ultimo valore osservato | Q56: Risultato atteso anno n | R56: Risultato atteso anno n+1 | S56: Risultato atteso anno n+2
B58: Se altro, indicare qui | C58: Se altro, indicare qui | E58: Se altro, indicare qui | L58: Se altro, indicare qui | M58: Se altro, indicare qui | O58: Se altro, indicare qui
B60: Indicatore | C60: (titolo) | L60: Indicatore | M60: (titolo)
B61: Cosa misura | L61: Cosa misura
B62: Tipologia | C62: Unità di misura | D62: Algoritmo di calcolo | E62: Fonte dei dati | F62: Ultimo valore osservato | G62: Risultato atteso anno n | H62: Risultato atteso anno n+1 | I62: Risultato atteso anno n+2 | L62: Tipologia | M62: Unità di misura | N62: Algoritmo di calcolo | O62: Fonte dei dati | P62: Ultimo valore osservato | Q62: Risultato atteso anno n | R62: Risultato atteso anno n+1 | S62: Risultato atteso anno n+2
B64: Se altro, indicare qui | C64: Se altro, indicare qui | E64: Se altro, indicare qui | L64: Se altro, indicare qui | M64: Se altro, indicare qui | O64: Se altro, indicare qui
B66: Indicatore | C66: (titolo) | L66: Indicatore | M66: (titolo)
B67: Cosa misura | L67: Cosa misura
B68: Tipologia | C68: Unità di misura | D68: Algoritmo di calcolo | E68: Fonte dei dati | F68: Ultimo valore osservato | G68: Risultato atteso anno n | H68: Risultato atteso anno n+1 | I68: Risultato atteso anno n+2 | L68: Tipologia | M68: Unità di misura | N68: Algoritmo di calcolo | O68: Fonte dei dati | P68: Ultimo valore osservato | Q68: Risultato atteso anno n | R68: Risultato atteso anno n+1 | S68: Risultato atteso anno n+2
B70: Se altro, indicare qui | C70: Se altro, indicare qui | E70: Se altro, indicare qui | L70: Se altro, indicare qui | M70: Se altro, indicare qui | O70: Se altro, indicare qui
B72: Indicatore | C72: (titolo) | L72: Indicatore
B73: Cosa misura | L73: Cosa misura
B74: Tipologia | C74: Unità di misura | D74: Algoritmo di calcolo | E74: Fonte dei dati | F74: Ultimo valore osservato | G74: Risultato atteso anno n | H74: Risultato atteso anno n+1 | I74: Risultato atteso anno n+2 | L74: Tipologia | M74: Unità di misura | N74: Algoritmo di calcolo | O74: Fonte dei dati | P74: Ultimo valore osservato | Q74: Risultato atteso anno n | R74: Risultato atteso anno n+1 | S74: Risultato atteso anno n+2
B76: Se altro, indicare qui | C76: Se altro, indicare qui | E76: Se altro, indicare qui | L76: Se altro, indicare qui | M76: Se altro, indicare qui | O76: Se altro, indicare qui
B78: Indicatore | C78: (titolo) | L78: Indicatore
B79: Cosa misura | L79: Cosa misura
B80: Tipologia | C80: Unità di misura | D80: Algoritmo di calcolo | E80: Fonte dei dati | F80: Ultimo valore osservato | G80: Risultato atteso anno n | H80: Risultato atteso anno n+1 | I80: Risultato atteso anno n+2 | L80: Tipologia | M80: Unità di misura | N80: Algoritmo di calcolo | O80: Fonte dei dati | P80: Ultimo valore osservato | Q80: Risultato atteso anno n | R80: Risultato atteso anno n+1 | S80: Risultato atteso anno n+2
B82: Se altro, indicare qui | C82: Se altro, indicare qui | E82: Se altro, indicare qui | L82: Se altro, indicare qui | M82: Se altro, indicare qui | O82: Se altro, indicare qui
B84: Missione | C84: 033 - Fondi da ripartire | L84: Missione | M84: 033 - Fondi da ripartire
B86: Programma | C86: 001 - Fondi da assegnare | L86: Programma | M86: 001 - Fondi da assegnare
B89: Obiettivo | C89: Titolo | D89: =+Generale!S8 -> 0 | L89: Obiettivo | M89: Titolo | N89: =+Generale!S12 -> 0
C90: Descrizione | M90: Descrizione
C91: Arco temporale realizzazione | M91: Arco temporale realizzazione
C92: Centro di responsabilità | M92: Centro di responsabilità
C93: Risorse finanziarie | M93: Risorse finanziarie
B94: =+Generale!R8 ->  | L94: =+Generale!R12 -> 
C95: Nr indicatori associati | E95: <<< nb: indicare preventivamente il Nr indicatori associati all'obiettivo | M95: Nr indicatori associati | O95: <<< nb: indicare preventivamente il Nr indicatori associati all'obiettivo
B98: Indicatore | C98: (titolo) | L98: Indicatore | M98: (titolo)
B99: Cosa misura | L99: Cosa misura
B100: Tipologia | C100: Unità di misura | D100: Algoritmo di calcolo | E100: Fonte dei dati | F100: Ultimo valore osservato | G100: Risultato atteso anno n | H100: Risultato atteso anno n+1 | I100: Risultato atteso anno n+2 | L100: Tipologia | M100: Unità di misura | N100: Algoritmo di calcolo | O100: Fonte dei dati | P100: Ultimo valore osservato | Q100: Risultato atteso anno n | R100: Risultato atteso anno n+1 | S100: Risultato atteso anno n+2
B102: Se altro, indicare qui | C102: Se altro, indicare qui | E102: Se altro, indicare qui | L102: Se altro, indicare qui | M102: Se altro, indicare qui | O102: Se altro, indicare qui
B104: Indicatore | C104: (titolo) | L104: Indicatore | M104: (titolo)
B105: Cosa misura | L105: Cosa misura
B106: Tipologia | C106: Unità di misura | D106: Algoritmo di calcolo | E106: Fonte dei dati | F106: Ultimo valore osservato | G106: Risultato atteso anno n | H106: Risultato atteso anno n+1 | I106: Risultato atteso anno n+2 | L106: Tipologia | M106: Unità di misura | N106: Algoritmo di calcolo | O106: Fonte dei dati | P106: Ultimo valore osservato | Q106: Risultato atteso anno n | R106: Risultato atteso anno n+1 | S106: Risultato atteso anno n+2
B108: Se altro, indicare qui | C108: Se altro, indicare qui | E108: Se altro, indicare qui | L108: Se altro, indicare qui | M108: Se altro, indicare qui | O108: Se altro, indicare qui
B110: Indicatore | C110: (titolo) | L110: Indicatore | M110: (titolo)
B111: Cosa misura | L111: Cosa misura
B112: Tipologia | C112: Unità di misura | D112: Algoritmo di calcolo | E112: Fonte dei dati | F112: Ultimo valore osservato | G112: Risultato atteso anno n | H112: Risultato atteso anno n+1 | I112: Risultato atteso anno n+2 | L112: Tipologia | M112: Unità di misura | N112: Algoritmo di calcolo | O112: Fonte dei dati | P112: Ultimo valore osservato | Q112: Risultato atteso anno n | R112: Risultato atteso anno n+1 | S112: Risultato atteso anno n+2
B114: Se altro, indicare qui | C114: Se altro, indicare qui | E114: Se altro, indicare qui | L114: Se altro, indicare qui | M114: Se altro, indicare qui | O114: Se altro, indicare qui
B116: Indicatore | C116: (titolo) | L116: Indicatore | M116: (titolo)
B117: Cosa misura | L117: Cosa misura
B118: Tipologia | C118: Unità di misura | D118: Algoritmo di calcolo | E118: Fonte dei dati | F118: Ultimo valore osservato | G118: Risultato atteso anno n | H118: Risultato atteso anno n+1 | I118: Risultato atteso anno n+2 | L118: Tipologia | M118: Unità di misura | N118: Algoritmo di calcolo | O118: Fonte dei dati | P118: Ultimo valore osservato | Q118: Risultato atteso anno n | R118: Risultato atteso anno n+1 | S118: Risultato atteso anno n+2
B120: Se altro, indicare qui | C120: Se altro, indicare qui | E120: Se altro, indicare qui | L120: Se altro, indicare qui | M120: Se altro, indicare qui | O120: Se altro, indicare qui
B122: Indicatore | C122: (titolo) | L122: Indicatore | M122: (titolo)
B123: Cosa misura
B124: Tipologia | C124: Unità di misura | D124: Algoritmo di calcolo | E124: Fonte dei dati | F124: Ultimo valore osservato | G124: Risultato atteso anno n | H124: Risultato atteso anno n+1 | I124: Risultato atteso anno n+2 | L124: Tipologia | M124: Unità di misura | N124: Algoritmo di calcolo | O124: Fonte dei dati | P124: Ultimo valore osservato | Q124: Risultato atteso anno n | R124: Risultato atteso anno n+1 | S124: Risultato atteso anno n+2
B126: Se altro, indicare qui | C126: Se altro, indicare qui | E126: Se altro, indicare qui | L126: Se altro, indicare qui | M126: Se altro, indicare qui | O126: Se altro, indicare qui
B128: Obiettivo | C128: Titolo | D128: =+Generale!S9 -> 0 | L128: Obiettivo | M128: Titolo | N128: =+Generale!S13 -> 0
C129: Descrizione | M129: Descrizione
C130: Arco temporale realizzazione | M130: Arco temporale realizzazione
C131: Centro di responsabilità | M131: Centro di responsabilità
C132: Risorse finanziarie | M132: Risorse finanziarie
B133: =+Generale!R9 ->  | L133: =+Generale!R13 -> 
C134: Nr indicatori associati | E134: <<< nb: indicare preventivamente il Nr indicatori associati all'obiettivo | M134: Nr indicatori associati | O134: <<< nb: indicare preventivamente il Nr indicatori associati all'obiettivo
B137: Indicatore | C137: (titolo) | L137: Indicatore | M137: (titolo)
B138: Cosa misura | L138: Cosa misura
B139: Tipologia | C139: Unità di misura | D139: Algoritmo di calcolo | E139: Fonte dei dati | F139: Ultimo valore osservato | G139: Risultato atteso anno n | H139: Risultato atteso anno n+1 | I139: Risultato atteso anno n+2 | L139: Tipologia | M139: Unità di misura | N139: Algoritmo di calcolo | O139: Fonte dei dati | P139: Ultimo valore osservato | Q139: Risultato atteso anno n | R139: Risultato atteso anno n+1 | S139: Risultato atteso anno n+2
B141: Se altro, indicare qui | C141: Se altro, indicare qui | E141: Se altro, indicare qui | L141: Se altro, indicare qui | M141: Se altro, indicare qui | O141: Se altro, indicare qui
B143: Indicatore | C143: (titolo) | L143: Indicatore | M143: (titolo)
B144: Cosa misura | L144: Cosa misura
B145: Tipologia | C145: Unità di misura | D145: Algoritmo di calcolo | E145: Fonte dei dati | F145: Ultimo valore osservato | G145: Risultato atteso anno n | H145: Risultato atteso anno n+1 | I145: Risultato atteso anno n+2 | L145: Tipologia | M145: Unità di misura | N145: Algoritmo di calcolo | O145: Fonte dei dati | P145: Ultimo valore osservato | Q145: Risultato atteso anno n | R145: Risultato atteso anno n+1 | S145: Risultato atteso anno n+2
B147: Se altro, indicare qui | C147: Se altro, indicare qui | E147: Se altro, indicare qui | L147: Se altro, indicare qui | M147: Se altro, indicare qui | O147: Se altro, indicare qui
B149: Indicatore | C149: (titolo) | L149: Indicatore | M149: (titolo)
B150: Cosa misura | L150: Cosa misura
B151: Tipologia | C151: Unità di misura | D151: Algoritmo di calcolo | E151: Fonte dei dati | F151: Ultimo valore osservato | G151: Risultato atteso anno n | H151: Risultato atteso anno n+1 | I151: Risultato atteso anno n+2 | L151: Tipologia | M151: Unità di misura | N151: Algoritmo di calcolo | O151: Fonte dei dati | P151: Ultimo valore osservato | Q151: Risultato atteso anno n | R151: Risultato atteso anno n+1 | S151: Risultato atteso anno n+2
B153: Se altro, indicare qui | C153: Se altro, indicare qui | E153: Se altro, indicare qui | L153: Se altro, indicare qui | M153: Se altro, indicare qui | O153: Se altro, indicare qui
B155: Indicatore | C155: (titolo) | L155: Indicatore | M155: (titolo)
B156: Cosa misura | L156: Cosa misura
B157: Tipologia | C157: Unità di misura | D157: Algoritmo di calcolo | E157: Fonte dei dati | F157: Ultimo valore osservato | G157: Risultato atteso anno n | H157: Risultato atteso anno n+1 | I157: Risultato atteso anno n+2 | L157: Tipologia | M157: Unità di misura | N157: Algoritmo di calcolo | O157: Fonte dei dati | P157: Ultimo valore osservato | Q157: Risultato atteso anno n | R157: Risultato atteso anno n+1 | S157: Risultato atteso anno n+2
B159: Se altro, indicare qui | C159: Se altro, indicare qui | E159: Se altro, indicare qui | L159: Se altro, indicare qui | M159: Se altro, indicare qui | O159: Se altro, indicare qui
B161: Indicatore | C161: (titolo) | L161: Indicatore | M161: (titolo)
B162: Cosa misura | L162: Cosa misura
B163: Tipologia | C163: Unità di misura | D163: Algoritmo di calcolo | E163: Fonte dei dati | F163: Ultimo valore osservato | G163: Risultato atteso anno n | H163: Risultato atteso anno n+1 | I163: Risultato atteso anno n+2 | L163: Tipologia | M163: Unità di misura | N163: Algoritmo di calcolo | O163: Fonte dei dati | P163: Ultimo valore osservato | Q163: Risultato atteso anno n | R163: Risultato atteso anno n+1 | S163: Risultato atteso anno n+2
B165: Se altro, indicare qui | C165: Se altro, indicare qui | E165: Se altro, indicare qui | L165: Se altro, indicare qui | M165: Se altro, indicare qui | O165: Se altro, indicare qui

Sheet 002_Fondi di riserva
B1: Missione | C1: 033 - Fondi da ripartire | L1: Missione | M1: 033 - Fondi da ripartire
B3: Programma | C3: 002 - Fondi di riserva e speciali | L3: Programma | M3: 002 - Fondi di riserva e speciali
B6: Obiettivo | C6: Titolo | D6: =+Generale!U6 -> 0 | L6: Obiettivo | M6: Titolo | N6: =+Generale!U10 -> 0
C7: Descrizione | M7: Descrizione
C8: Arco temporale realizzazione | M8: Arco temporale realizzazione
C9: Centro di responsabilità | M9: Centro di responsabilità
C10: Risorse economiche | M10: Risorse finanziarie
B11: =+Generale!T6 ->  | L11: =+Generale!T10 -> 
C12: Nr indicatori associati | D12: 1 | E12: <<< nb: indicare preventivamente il Nr indicatori associati all'obiettivo | M12: Nr indicatori associati | O12: <<< nb: indicare preventivamente il Nr indicatori associati all'obiettivo
B15: Indicatore | C15: (titolo) | L15: Indicatore | M15: (titolo)
B16: Cosa misura | L16: Cosa misura
B17: Tipologia | C17: Unità di misura | D17: Algoritmo di calcolo | E17: Fonte dei dati | F17: Ultimo valore osservato | G17: Risultato atteso anno n | H17: Risultato atteso anno n+1 | I17: Risultato atteso anno n+2 | L17: Tipologia | M17: Unità di misura | N17: Algoritmo di calcolo | O17: Fonte dei dati | P17: Ultimo valore osservato | Q17: Risultato atteso anno n | R17: Risultato atteso anno n+1 | S17: Risultato atteso anno n+2
B19: Se altro, indicare qui | C19: Se altro, indicare qui | E19: Se altro, indicare qui | L19: Se altro, indicare qui | M19: Se altro, indicare qui | O19: Se altro, indicare qui
B21: Indicatore | C21: (titolo) | L21: Indicatore
B22: Cosa misura | L22: Cosa misura
B23: Tipologia | C23: Unità di misura | D23: Algoritmo di calcolo | E23: Fonte dei dati | F23: Ultimo valore osservato | G23: Risultato atteso anno n | H23: Risultato atteso anno n+1 | I23: Risultato atteso anno n+2 | L23: Tipologia | M23: Unità di misura | N23: Algoritmo di calcolo | O23: Fonte dei dati | P23: Ultimo valore osservato | Q23: Risultato atteso anno n | R23: Risultato atteso anno n+1 | S23: Risultato atteso anno n+2
B25: Se altro, indicare qui | C25: Se altro, indicare qui | E25: Se altro, indicare qui | L25: Se altro, indicare qui | M25: Se altro, indicare qui | O25: Se altro, indicare qui
B27: Indicatore | C27: (titolo) | L27: Indicatore | M27: (titolo)
B28: Cosa misura | L28: Cosa misura
B29: Tipologia | C29: Unità di misura | D29: Algoritmo di calcolo | E29: Fonte dei dati | F29: Ultimo valore osservato | G29: Risultato atteso anno n | H29: Risultato atteso anno n+1 | I29: Risultato atteso anno n+2 | L29: Tipologia | M29: Unità di misura | N29: Algoritmo di calcolo | O29: Fonte dei dati | P29: Ultimo valore osservato | Q29: Risultato atteso anno n | R29: Risultato atteso anno n+1 | S29: Risultato atteso anno n+2
B31: Se altro, indicare qui | C31: Se altro, indicare qui | E31: Se altro, indicare qui | L31: Se altro, indicare qui | M31: Se altro, indicare qui | O31: Se altro, indicare qui
B33: Indicatore | C33: (titolo) | L33: Indicatore | M33: (titolo)
B34: Cosa misura | L34: Cosa misura
B35: Tipologia | C35: Unità di misura | D35: Algoritmo di calcolo | E35: Fonte dei dati | F35: Ultimo valore osservato | G35: Risultato atteso anno n | H35: Risultato atteso anno n+1 | I35: Risultato atteso anno n+2 | L35: Tipologia | M35: Unità di misura | N35: Algoritmo di calcolo | O35: Fonte dei dati | P35: Ultimo valore osservato | Q35: Risultato atteso anno n | R35: Risultato atteso anno n+1 | S35: Risultato atteso anno n+2
B37: Se altro, indicare qui | C37: Se altro, indicare qui | E37: Se altro, indicare qui | L37: Se altro, indicare qui | M37: Se altro, indicare qui | O37: Se altro, indicare qui
B39: Indicatore | C39: (titolo) | L39: Indicatore | M39: (titolo)
B40: Cosa misura | L40: Cosa misura
B41: Tipologia | C41: Unità di misura | D41: Algoritmo di calcolo | E41: Fonte dei dati | F41: Ultimo valore osservato | G41: Risultato atteso anno n | H41: Risultato atteso anno n+1 | I41: Risultato atteso anno n+2 | L41: Tipologia | M41: Unità di misura | N41: Algoritmo di calcolo | O41: Fonte dei dati | P41: Ultimo valore osservato | Q41: Risultato atteso anno n | R41: Risultato atteso anno n+1 | S41: Risultato atteso anno n+2
B43: Se altro, indicare qui | C43: Se altro, indicare qui | E43: Se altro, indicare qui | L43: Se altro, indicare qui | M43: Se altro, indicare qui | O43: Se altro, indicare qui
B45: Obiettivo | C45: Titolo | D45: =+Generale!U7 -> 0 | L45: Obiettivo | M45: Titolo | N45: =+Generale!U11 -> 0
C46: Descrizione | M46: Descrizione
C47: Arco temporale per la realizzazione | M47: Arco temporale per la realizzazione
C48: Centro di responsabilità | M48: Centro di responsabilità
C49: Risorse finanziarie | M49: Risorse finanziarie
B50: =+Generale!T7 ->  | L50: =+Generale!T11 -> 
C51: Nr indicatori associati | E51: <<< nb: indicare preventivamente il Nr indicatori associati all'obiettivo | M51: Nr indicatori associati | O51: <<< nb: indicare preventivamente il Nr indicatori associati all'obiettivo
B54: Indicatore | C54: (titolo) | L54: Indicatore | M54: (titolo)
B55: Cosa misura | L55: Cosa misura
B56: Tipologia | C56: Unità di misura | D56: Algoritmo di calcolo | E56: Fonte dei dati | F56: Ultimo valore osservato | G56: Risultato atteso anno n | H56: Risultato atteso anno n+1 | I56: Risultato atteso anno n+2 | L56: Tipologia | M56: Unità di misura | N56: Algoritmo di calcolo | O56: Fonte dei dati | P56: Ultimo valore osservato | Q56: Risultato atteso anno n | R56: Risultato atteso anno n+1 | S56: Risultato atteso anno n+2
B58: Se altro, indicare qui | C58: Se altro, indicare qui | E58: Se altro, indicare qui | L58: Se altro, indicare qui | M58: Se altro, indicare qui | O58: Se altro, indicare qui
B60: Indicatore | C60: (titolo) | L60: Indicatore | M60: (titolo)
B61: Cosa misura | L61: Cosa misura
B62: Tipologia | C62: Unità di misura | D62: Algoritmo di calcolo | E62: Fonte dei dati | F62: Ultimo valore osservato | G62: Risultato atteso anno n | H62: Risultato atteso anno n+1 | I62: Risultato atteso anno n+2 | L62: Tipologia | M62: Unità di misura | N62: Algoritmo di calcolo | O62: Fonte dei dati | P62: Ultimo valore osservato | Q62: Risultato atteso anno n | R62: Risultato atteso anno n+1 | S62: Risultato atteso anno n+2
B64: Se altro, indicare qui | C64: Se altro, indicare qui | E64: Se altro, indicare qui | L64: Se altro, indicare qui | M64: Se altro, indicare qui | O64: Se altro, indicare qui
B66: Indicatore | C66: (titolo) | L66: Indicatore | M66: (titolo)
B67: Cosa misura | L67: Cosa misura
B68: Tipologia | C68: Unità di misura | D68: Algoritmo di calcolo | E68: Fonte dei dati | F68: Ultimo valore osservato | G68: Risultato atteso anno n | H68: Risultato atteso anno n+1 | I68: Risultato atteso anno n+2 | L68: Tipologia | M68: Unità di misura | N68: Algoritmo di calcolo | O68: Fonte dei dati | P68: Ultimo valore osservato | Q68: Risultato atteso anno n | R68: Risultato atteso anno n+1 | S68: Risultato atteso anno n+2
B70: Se altro, indicare qui | C70: Se altro, indicare qui | E70: Se altro, indicare qui | L70: Se altro, indicare qui | M70: Se altro, indicare qui | O70: Se altro, indicare qui
B72: Indicatore | C72: (titolo) | L72: Indicatore
B73: Cosa misura | L73: Cosa misura
B74: Tipologia | C74: Unità di misura | D74: Algoritmo di calcolo | E74: Fonte dei dati | F74: Ultimo valore osservato | G74: Risultato atteso anno n | H74: Risultato atteso anno n+1 | I74: Risultato atteso anno n+2 | L74: Tipologia | M74: Unità di misura | N74: Algoritmo di calcolo | O74: Fonte dei dati | P74: Ultimo valore osservato | Q74: Risultato atteso anno n | R74: Risultato atteso anno n+1 | S74: Risultato atteso anno n+2
B76: Se altro, indicare qui | C76: Se altro, indicare qui | E76: Se altro, indicare qui | L76: Se altro, indicare qui | M76: Se altro, indicare qui | O76: Se altro, indicare qui
B78: Indicatore | C78: (titolo) | L78: Indicatore
B79: Cosa misura | L79: Cosa misura
B80: Tipologia | C80: Unità di misura | D80: Algoritmo di calcolo | E80: Fonte dei dati | F80: Ultimo valore osservato | G80: Risultato atteso anno n | H80: Risultato atteso anno n+1 | I80: Risultato atteso anno n+2 | L80: Tipologia | M80: Unità di misura | N80: Algoritmo di calcolo | O80: Fonte dei dati | P80: Ultimo valore osservato | Q80: Risultato atteso anno n | R80: Risultato atteso anno n+1 | S80: Risultato atteso anno n+2
B82: Se altro, indicare qui | C82: Se altro, indicare qui | E82: Se altro, indicare qui | L82: Se altro, indicare qui | M82: Se altro, indicare qui | O82: Se altro, indicare qui
B84: Missione | C84: 033 - Fondi da ripartire | L84: Missione | M84: 033 - Fondi da ripartire
B86: Programma | C86: 002 - Fondi di riserva e speciali | L86: Programma | M86: 002 - Fondi di riserva e speciali
B89: Obiettivo | C89: Titolo | D89: =+Generale!U8 -> 0 | L89: Obiettivo | M89: Titolo | N89: =+Generale!U12 -> 0
C90: Descrizione | M90: Descrizione
C91: Arco temporale realizzazione | M91: Arco temporale realizzazione
C92: Centro di responsabilità | M92: Centro di responsabilità
C93: Risorse finanziarie | M93: Risorse finanziarie
B94: =+Generale!T8 ->  | L94: =+Generale!T12 -> 
C95: Nr indicatori associati | E95: <<< nb: indicare preventivamente il Nr indicatori associati all'obiettivo | M95: Nr indicatori associati | O95: <<< nb: indicare preventivamente il Nr indicatori associati all'obiettivo
B98: Indicatore | C98: (titolo) | L98: Indicatore | M98: (titolo)
B99: Cosa misura | L99: Cosa misura
B100: Tipologia | C100: Unità di misura | D100: Algoritmo di calcolo | E100: Fonte dei dati | F100: Ultimo valore osservato | G100: Risultato atteso anno n | H100: Risultato atteso anno n+1 | I100: Risultato atteso anno n+2 | L100: Tipologia | M100: Unità di misura | N100: Algoritmo di calcolo | O100: Fonte dei dati | P100: Ultimo valore osservato | Q100: Risultato atteso anno n | R100: Risultato atteso anno n+1 | S100: Risultato atteso anno n+2
B102: Se altro, indicare qui | C102: Se altro, indicare qui | E102: Se altro, indicare qui | L102: Se altro, indicare qui | M102: Se altro, indicare qui | O102: Se altro, indicare qui
B104: Indicatore | C104: (titolo) | L104: Indicatore | M104: (titolo)
B105: Cosa misura | L105: Cosa misura
B106: Tipologia | C106: Unità di misura | D106: Algoritmo di calcolo | E106: Fonte dei dati | F106: Ultimo valore osservato | G106: Risultato atteso anno n | H106: Risultato atteso anno n+1 | I106: Risultato atteso anno n+2 | L106: Tipologia | M106: Unità di misura | N106: Algoritmo di calcolo | O106: Fonte dei dati | P106: Ultimo valore osservato | Q106: Risultato atteso anno n | R106: Risultato atteso anno n+1 | S106: Risultato atteso anno n+2
B108: Se altro, indicare qui | C108: Se altro, indicare qui | E108: Se altro, indicare qui | L108: Se altro, indicare qui | M108: Se altro, indicare qui | O108: Se altro, indicare qui
B110: Indicatore | C110: (titolo) | L110: Indicatore | M110: (titolo)
B111: Cosa misura | L111: Cosa misura
B112: Tipologia | C112: Unità di misura | D112: Algoritmo di calcolo | E112: Fonte dei dati | F112: Ultimo valore osservato | G112: Risultato atteso anno n | H112: Risultato atteso anno n+1 | I112: Risultato atteso anno n+2 | L112: Tipologia | M112: Unità di misura | N112: Algoritmo di calcolo | O112: Fonte dei dati | P112: Ultimo valore osservato | Q112: Risultato atteso anno n | R112: Risultato atteso anno n+1 | S112: Risultato atteso anno n+2
B114: Se altro, indicare qui | C114: Se altro, indicare qui | E114: Se altro, indicare qui | L114: Se altro, indicare qui | M114: Se altro, indicare qui | O114: Se altro, indicare qui
B116: Indicatore | C116: (titolo) | L116: Indicatore | M116: (titolo)
B117: Cosa misura | L117: Cosa misura
B118: Tipologia | C118: Unità di misura | D118: Algoritmo di calcolo | E118: Fonte dei dati | F118: Ultimo valore osservato | G118: Risultato atteso anno n | H118: Risultato atteso anno n+1 | I118: Risultato atteso anno n+2 | L118: Tipologia | M118: Unità di misura | N118: Algoritmo di calcolo | O118: Fonte dei dati | P118: Ultimo valore osservato | Q118: Risultato atteso anno n | R118: Risultato atteso anno n+1 | S118: Risultato atteso anno n+2
B120: Se altro, indicare qui | C120: Se altro, indicare qui | E120: Se altro, indicare qui | L120: Se altro, indicare qui | M120: Se altro, indicare qui | O120: Se altro, indicare qui
B122: Indicatore | C122: (titolo) | L122: Indicatore | M122: (titolo)
B123: Cosa misura
B124: Tipologia | C124: Unità di misura | D124: Algoritmo di calcolo | E124: Fonte dei dati | F124: Ultimo valore osservato | G124: Risultato atteso anno n | H124: Risultato atteso anno n+1 | I124: Risultato atteso anno n+2 | L124: Tipologia | M124: Unità di misura | N124: Algoritmo di calcolo | O124: Fonte dei dati | P124: Ultimo valore osservato | Q124: Risultato atteso anno n | R124: Risultato atteso anno n+1 | S124: Risultato atteso anno n+2
B126: Se altro, indicare qui | C126: Se altro, indicare qui | E126: Se altro, indicare qui | L126: Se altro, indicare qui | M126: Se altro, indicare qui | O126: Se altro, indicare qui
B128: Obiettivo | C128: Titolo | D128: =+Generale!U9 -> 0 | L128: Obiettivo | M128: Titolo | N128: =+Generale!U13 -> 0
C129: Descrizione | M129: Descrizione
C130: Arco temporale realizzazione | M130: Arco temporale realizzazione
C131: Centro di responsabilità | M131: Centro di responsabilità
C132: Risorse finanziarie | M132: Risorse finanziarie
B133: =+Generale!T9 ->  | L133: =+Generale!T13 -> 
C134: Nr indicatori associati | E134: <<< nb: indicare preventivamente il Nr indicatori associati all'obiettivo | M134: Nr indicatori associati | O134: <<< nb: indicare preventivamente il Nr indicatori associati all'obiettivo
B137: Indicatore | C137: (titolo) | L137: Indicatore | M137: (titolo)
B138: Cosa misura | L138: Cosa misura
B139: Tipologia | C139: Unità di misura | D139: Algoritmo di calcolo | E139: Fonte dei dati | F139: Ultimo valore osservato | G139: Risultato atteso anno n | H139: Risultato atteso anno n+1 | I139: Risultato atteso anno n+2 | L139: Tipologia | M139: Unità di misura | N139: Algoritmo di calcolo | O139: Fonte dei dati | P139: Ultimo valore osservato | Q139: Risultato atteso anno n | R139: Risultato atteso anno n+1 | S139: Risultato atteso anno n+2
B141: Se altro, indicare qui | C141: Se altro, indicare qui | E141: Se altro, indicare qui | L141: Se altro, indicare qui | M141: Se altro, indicare qui | O141: Se altro, indicare qui
B143: Indicatore | C143: (titolo) | L143: Indicatore | M143: (titolo)
B144: Cosa misura | L144: Cosa misura
B145: Tipologia | C145: Unità di misura | D145: Algoritmo di calcolo | E145: Fonte dei dati | F145: Ultimo valore osservato | G145: Risultato atteso anno n | H145: Risultato atteso anno n+1 | I145: Risultato atteso anno n+2 | L145: Tipologia | M145: Unità di misura | N145: Algoritmo di calcolo | O145: Fonte dei dati | P145: Ultimo valore osservato | Q145: Risultato atteso anno n | R145: Risultato atteso anno n+1 | S145: Risultato atteso anno n+2
B147: Se altro, indicare qui | C147: Se altro, indicare qui | E147: Se altro, indicare qui | L147: Se altro, indicare qui | M147: Se altro, indicare qui | O147: Se altro, indicare qui
B149: Indicatore | C149: (titolo) | L149: Indicatore | M149: (titolo)
B150: Cosa misura | L150: Cosa misura
B151: Tipologia | C151: Unità di misura | D151: Algoritmo di calcolo | E151: Fonte dei dati | F151: Ultimo valore osservato | G151: Risultato atteso anno n | H151: Risultato atteso anno n+1 | I151: Risultato atteso anno n+2 | L151: Tipologia | M151: Unità di misura | N151: Algoritmo di calcolo | O151: Fonte dei dati | P151: Ultimo valore osservato | Q151: Risultato atteso anno n | R151: Risultato atteso anno n+1 | S151: Risultato atteso anno n+2
B153: Se altro, indicare qui | C153: Se altro, indicare qui | E153: Se altro, indicare qui | L153: Se altro, indicare qui | M153: Se altro, indicare qui | O153: Se altro, indicare qui
B155: Indicatore | C155: (titolo) | L155: Indicatore | M155: (titolo)
B156: Cosa misura | L156: Cosa misura
B157: Tipologia | C157: Unità di misura | D157: Algoritmo di calcolo | E157: Fonte dei dati | F157: Ultimo valore osservato | G157: Risultato atteso anno n | H157: Risultato atteso anno n+1 | I157: Risultato atteso anno n+2 | L157: Tipologia | M157: Unità di misura | N157: Algoritmo di calcolo | O157: Fonte dei dati | P157: Ultimo valore osservato | Q157: Risultato atteso anno n | R157: Risultato atteso anno n+1 | S157: Risultato atteso anno n+2
B159: Se altro, indicare qui | C159: Se altro, indicare qui | E159: Se altro, indicare qui | L159: Se altro, indicare qui | M159: Se altro, indicare qui | O159: Se altro, indicare qui
B161: Indicatore | C161: (titolo) | L161: Indicatore | M161: (titolo)
B162: Cosa misura | L162: Cosa misura
B163: Tipologia | C163: Unità di misura | D163: Algoritmo di calcolo | E163: Fonte dei dati | F163: Ultimo valore osservato | G163: Risultato atteso anno n | H163: Risultato atteso anno n+1 | I163: Risultato atteso anno n+2 | L163: Tipologia | M163: Unità di misura | N163: Algoritmo di calcolo | O163: Fonte dei dati | P163: Ultimo valore osservato | Q163: Risultato atteso anno n | R163: Risultato atteso anno n+1 | S163: Risultato atteso anno n+2
B165: Se altro, indicare qui | C165: Se altro, indicare qui | E165: Se altro, indicare qui | L165: Se altro, indicare qui | M165: Se altro, indicare qui | O165: Se altro, indicare qui
